Cogmind - Beta 16 @@@ ROGUE MODE // 2025.11.06 @ 06:23:04 Player: Naughtyusername Result: Self-destructed Performance ------------- Evolutions (8) 4000 Regions Visited (31) 6200 Robots Destroyed (412) 2060 Value Destroyed (17200) 17200 Prototype IDs (89) 1780 Alien Tech Used (2) 400 Bonus (6136) 6136 TOTAL SCORE: 37776 Bonus ------- High Alert Combat Kills 2414 Follower Combat Kills 3245 Awakened Behemoth Slayer 1000 Met Data Miner 300 Met Imprinter 300 Was Imprinted 300 Met Zhirov 300 Met R17 at Cetus 500 Friendly Fire -2223 Cogmind --------- Core Integrity 1450/1450 Matter 128/300 Energy 100/100 System Corruption 0% Temperature Cool (0) Movement Treading (240) Ox1 Location -2/Research Parts ------- > --- POWER (2) -------- (None) > --- PROPULSION (8) --- Medium Treads > --- UTILITY (11) ----- Large Storage Unit Experimental Signal Interpreter Advanced Terrain Scan Processor Advanced Target Analyzer Core Analyzer Centrium Heavy Armor Plating Graphene Brace > --- WEAPON (3) ------- Neutron Missile Launcher > --- INVENTORY (15) --- Quantum Reactor Enhanced Optical Array Long-range Sensor Array Long-range Terrain Scanner Advanced Transmission Jammer Improved Reaction Control System Centrium Medium Armor Plating Advanced Hacking Suite Transdimensional Reconstructor CR-A16's Behemoth Slayer Peak State ------------ > --- POWER ------------ Light Particle Reactor Light Particle Reactor > --- PROPULSION ------- Antigrav System Antigrav System Antigrav System Antigrav System Linear Gravjet Combat Gravmag System Improved Antigrav System Improved Antigrav System > --- UTILITY ---------- Advanced Heat Sink Advanced Heat Sink Large Storage Unit Long-range Sensor Array Experimental Signal Interpreter Long-range Terrain Scanner Advanced Terrain Scan Processor Core Analyzer Medium Regenerative Plating > --- WEAPON ----------- Improved Matter Neutralizer Advanced KE Penetrator Advanced KE Penetrator > --- INVENTORY -------- Quantum Reactor Enhanced Optical Array Advanced Transmission Jammer Improved Reaction Control System Improved Phase Shifter Centrium Medium Armor Plating Centrium Heavy Armor Plating Advanced Powered Armor Graphene Brace Advanced Hacking Suite Transdimensional Reconstructor Advanced KE Penetrator Neutron Missile Launcher CR-A16's Behemoth Slayer [Rating: 151] Favorites ----------- Power Improved Deuterium Engine Engine Improved Deuterium Engine Power Core Enhanced Fission Core Reactor Heavy Antimatter Reactor Propulsion Aluminum Leg Treads Light Treads Leg Aluminum Leg Wheel Armored Huge Wheel Hover Unit Combat Gravmag System Utility High-capacity Storage Unit Device Advanced Sensor Array Storage High-capacity Storage Unit Processor Enhanced Optical Array Hackware Advanced Hacking Suite Protection Improved Light Armor Plating Weapon Cooled Plasma Cannon Energy Gun Gatling Laser Energy Cannon Cooled Plasma Cannon Ballistic Gun Enhanced Coil Gun Ballistic Cannon Antimatter Cannon Launcher Neutron Missile Launcher Special Weapon Remote Datajack Slashing Weapon Chainsword Piercing Weapon CR-A16's Pointy Stick Special Melee Weapon Dirty Datajack Build | -11 -10 -10 -9 -9 -9 -8 -8 -7 -7 -7 -7 -6 -6 -6 -6 -6 -5 -5 -5 -5 -5 -4 -4 -4 -4 -4 -4 -4 -4 -3 -2 ------- Run | Yrd Mat Min Mat Min Exi Min Mat Fac Low Low Dat Pro Fac Low Low Zio Pro Fac Upp Upp Zhi Pro Fac Was Fac Ext Cet Arc Hub Res Res Slots Evolved 16 | . . . 2 . . . 2 2 . . . . 2 . . . . 2 . . . . 2 . . . . . . 2 2 Power . | . . . . . . . . . . . . . . . . . . . . . . . . . . . . . . . . Propulsion 6 | . . . 1 . . . 1 . . . . . 2 . . . . 1 . . . . 1 . . . . . . . . Utility 9 | . . . 1 . . . 1 2 . . . . . . . . . 1 . . . . 1 . . . . . . 1 2 Weapon 1 | . . . . . . . . . . . . . . . . . . . . . . . . . . . . . . 1 . Parts Attached 304 | 7 12 1 20 1 . 2 23 21 4 2 9 16 15 12 9 8 7 38 1 . 5 1 26 1 7 6 5 11 16 18 . Power 27 | 1 2 . 3 . . . . 2 . 1 1 2 3 3 . . . 2 . . 1 . . . . . 2 1 1 2 . Engine 16 | 1 2 . 3 . . . . 1 . 1 1 2 2 3 . . . . . . . . . . . . . . . . . Core 4 | . . . . . . . . 1 . . . . 1 . . . . 2 . . . . . . . . . . . . . Reactor 7 | . . . . . . . . . . . . . . . . . . . . . 1 . . . . . 2 1 1 2 . Propulsion 89 | 2 4 . 7 1 . 1 11 5 1 1 2 3 1 4 1 1 2 7 1 . 3 . 9 . . 1 . 6 7 8 . Treads 7 | 2 . . . . . . 2 . . . . . 1 . . . . . . . . . . . . . . . . 2 . Leg 49 | . 4 . 7 1 . 1 9 5 1 1 2 2 . 4 1 1 2 4 1 . 3 . . . . . . . . . . Wheel 1 | . . . . . . . . . . . . 1 . . . . . . . . . . . . . . . . . . . Hover 32 | . . . . . . . . . . . . . . . . . . 3 . . . . 9 . . 1 . 6 7 6 . Flight . | . . . . . . . . . . . . . . . . . . . . . . . . . . . . . . . . Utility 122 | 2 3 1 5 . . . 6 9 2 . 2 4 5 2 4 6 3 21 . . 1 1 14 1 7 5 2 4 7 5 . Device 54 | 1 1 1 1 . . . 1 1 1 . 1 . 4 1 2 3 1 5 . . . 1 7 1 4 5 1 3 7 1 . Storage 12 | 1 1 . 1 . . . 1 . 1 . . 2 . . . . . 4 . . . . 1 . . . . . . . . Processor 19 | . . . . . . . 1 3 . . . 1 . . 2 . 2 4 . . . . 1 . 2 . . . . 3 . Hackware 9 | . . . . . . . . . . . . . . . . 1 . 5 . . . . 2 . 1 . . . . . . Protection 28 | . 1 . 3 . . . 3 5 . . 1 1 1 1 . 2 . 3 . . 1 . 3 . . . 1 1 . 1 . Artifact . | . . . . . . . . . . . . . . . . . . . . . . . . . . . . . . . . Weapon 66 | 2 3 . 5 . . 1 6 5 1 . 4 7 6 3 4 1 2 8 . . . . 3 . . . 1 . 1 3 . Energy Gun 17 | . 2 . 2 . . . 1 3 . . 2 1 1 3 . . 1 1 . . . . . . . . . . . . . Energy Cannon 15 | . . . 2 . . 1 1 . . . 1 1 3 . 2 . 1 1 . . . . 1 . . . . . . 1 . Ballistic Gun 11 | 2 . . 1 . . . 1 1 . . . . . . . . . . . . . . 2 . . . 1 . 1 2 . Ballistic Cannon 2 | . . . . . . . . . . . . . . . . . . 2 . . . . . . . . . . . . . Launcher 15 | . 1 . . . . . 3 1 1 . . 4 2 . . . . 3 . . . . . . . . . . . . . Special Weapon 2 | . . . . . . . . . . . 1 . . . 1 . . . . . . . . . . . . . . . . Impact Weapon . | . . . . . . . . . . . . . . . . . . . . . . . . . . . . . . . . Slashing Weapon 1 | . . . . . . . . . . . . 1 . . . . . . . . . . . . . . . . . . . Piercing Weapon 2 | . . . . . . . . . . . . . . . . 1 . 1 . . . . . . . . . . . . . Special Melee Weapon 1 | . . . . . . . . . . . . . . . 1 . . . . . . . . . . . . . . . . Unidentified Prototypes 51 | . . . 3 . . . 3 2 . 1 . 6 3 . . 2 . 16 . . 4 . 5 . . . 1 1 2 2 . Corrupted Parts 5 | . . . . . . . . . . . . 4 . . . . 1 . . . . . . . . . . . . . . System Corruption 15 | . . . . . . . . . . . . 10 . . . . 5 . . . . . . . . . . . . . . Parts Lost 76 | . 8 . 7 . . 1 5 1 . . 6 1 5 4 3 . . 1 . 1 . . . . . . 1 . 7 25 . Power 9 | . 1 . 1 . . . . 1 . . 1 1 1 1 . . . . . . . . . . . . . . . 2 . Propulsion 39 | . 4 . 4 . . 1 2 . . . 2 . 3 1 3 . . 1 . 1 . . . . . . . . 3 14 . Utility 17 | . 1 . 1 . . . 2 . . . 2 . 1 2 . . . . . . . . . . . . . . 3 5 . Weapon 11 | . 2 . 1 . . . 1 . . . 1 . . . . . . . . . . . . . . . 1 . 1 4 . Highest Loss Streak 17 | . 6 . 3 . . 1 5 1 . . 3 1 3 2 2 . . 1 . 1 . . . . . . 1 . 4 17 . To Critical Strikes . | . . . . . . . . . . . . . . . . . . . . . . . . . . . . . . . . Average Backups 16 | . 6 9 10 14 15 14 14 14 14 16 15 18 19 19 19 19 20 19 20 20 19 20 18 19 19 19 20 19 19 13 10 Power . | . 2 2 . 1 . . . . . 1 . . 1 . 1 1 1 1 1 1 . . . 1 . . . 1 1 1 1 Propulsion 1 | . 1 3 2 1 . . 1 1 2 2 1 3 . . 1 . . 1 6 6 6 6 2 1 1 1 . . 1 . . Utility 6 | . . 1 2 3 6 7 4 3 3 5 5 5 7 9 7 9 11 8 5 5 5 6 9 12 13 14 15 13 12 8 7 Weapon 6 | . 1 2 3 7 7 6 6 6 6 7 7 8 10 9 8 8 7 7 8 8 6 7 5 4 4 3 2 3 4 2 1 Tool/Special . | . . . . . . . . . . . . . . . . . . . . . . . . . . . . . . . . Unused Backups 64 | . 1 3 8 3 1 . 12 7 1 . . 3 3 1 1 . . 2 . . 2 . 5 . 2 3 . . 1 1 4 Power 9 | . . 1 2 . 1 . . . 1 . . . . . . . . . . . 1 . 1 . 1 . . . . . 1 Propulsion 10 | . 1 1 1 1 . . 1 1 . . . 2 . . . . . . . . . . 2 . . . . . . . . Utility 21 | . . . 3 1 . . 3 3 . . . . 2 1 . . . 1 . . . . . . 1 3 . . . 1 2 Weapon 21 | . . 1 2 1 . . 8 2 . . . 1 1 . 1 . . . . . 1 . 2 . . . . . 1 . . Tool/Special 3 | . . . . . . . . 1 . . . . . . . . . 1 . . . . . . . . . . . . 1 Average Slot Usage (%) 92 | . 93 100 98 100 80 99 97 99 100 99 96 87 91 86 92 87 93 90 88 83 82 94 92 90 89 88 89 96 99 78 37 Engine 7 | . 12 14 11 11 11 11 9 6 . 2 9 12 11 11 12 12 12 4 . . . . . . . . . . . . . Core 2 | . . . . . . . . . 7 7 4 . . . . . . 5 11 11 6 5 5 5 5 3 5 5 2 . . Reactor 1 | . . . . . . . . . . . . . . . . . . . . . 3 5 5 5 5 5 5 5 7 7 . Leg 23 | . 18 28 32 33 33 32 33 30 30 29 25 16 26 24 30 29 31 28 27 22 27 33 1 . . . . . . . . Hover 5 | . . . . . . . . . . . . . . . . . . 1 . . . . 31 30 30 30 30 36 39 22 . Device 11 | . 11 14 11 11 11 11 8 8 13 13 7 10 9 11 8 8 8 12 10 10 10 10 11 10 10 12 15 15 18 14 4 Storage 7 | . 14 14 11 11 11 11 9 7 7 7 7 7 6 6 6 6 6 5 5 5 5 5 5 5 5 5 5 5 5 4 4 Processor 12 | . . . . . . . 9 19 15 14 14 17 17 12 16 18 18 19 22 22 22 22 18 15 17 15 15 14 6 13 16 Protection 5 | . 1 . 10 11 11 11 9 8 8 8 13 7 3 6 5 1 3 . . . . . 2 5 2 7 5 5 10 4 4 Energy Gun 4 | . 16 28 10 . . . . 2 6 6 5 5 3 8 7 . . . . . . . . . . . . . . . . Energy Cannon 6 | . . . 10 22 3 21 13 6 6 7 8 4 8 2 4 3 8 10 10 10 1 11 7 . 3 . . . . 1 . Ballistic Gun 1 | . 8 . . . . . 3 3 . . . . . . . . . . . . . . 1 9 5 9 9 9 8 5 . Peak Build Rating 151 | 7 11 12 22 22 22 21 29 49 48 51 52 64 78 76 80 81 88 107 107 104 115 113 131 132 132 137 139 140 137 151 68 Average Rating 67 | 5 8 10 19 22 15 20 26 40 45 46 48 56 72 71 77 74 79 98 104 99 102 112 126 130 127 129 137 130 130 120 68 On Entrance 71 | . 7 11 12 22 22 15 21 29 46 45 51 52 64 68 76 76 77 85 102 102 99 111 113 130 132 131 135 139 125 112 68 Avg Prop Armor Cover (%) 6 | . . . . . . . 12 . . . . 12 6 . . . . 2 . . . . . . . . . . . . . Naked Turns . | . . . . . . . . . . . . . . . . . . . . . . . . . . . . . . . . Heaviest Build 111 | 15 22 20 41 41 41 41 43 48 64 76 80 81 89 84 84 100 81 90 86 80 90 90 106 98 104 104 111 103 102 92 54 Greatest Support 163 | 40 40 20 33 33 33 30 46 66 66 63 65 86 118 108 108 108 118 138 129 129 163 163 163 100 100 116 106 106 104 94 28 Greatest Overweight (x) 17 | . 4 . 1 1 1 2 3 . 1 1 1 2 . . 1 . . . . . . . 1 . 1 1 1 1 1 17 1 Average Overweight (x) . | . . . . 1 1 1 . . . 1 1 1 . . . . . . . . . . . . . . . . . . 1 Largest Inventory Capacity 20 | 8 10 10 15 15 15 15 15 15 20 20 20 20 20 20 20 20 20 20 20 20 20 20 20 20 20 20 20 20 20 20 15 Average Capacity 17 | 7 9 10 12 15 15 15 15 15 16 20 20 20 20 20 20 20 20 20 20 20 20 20 20 20 20 20 20 20 20 15 15 Most Carried 20 | 1 10 10 14 15 15 15 15 15 20 20 19 20 20 20 20 20 20 20 20 20 20 20 20 20 20 20 20 20 20 16 10 Average Carried 16 | . 6 9 10 14 14 14 14 14 15 19 17 18 19 19 19 19 20 19 20 20 19 20 19 19 19 19 19 19 19 13 10 Final Capacity 20 | 8 10 10 15 15 15 15 15 15 20 20 20 20 20 20 20 20 20 20 20 20 20 20 20 20 20 20 20 20 20 15 15 Final Carried 20 | 1 10 10 13 15 15 15 15 13 20 19 15 20 19 20 17 20 20 20 20 20 20 20 19 20 20 20 20 20 17 10 10 Class Distribution -------------------- 29% | Mutant 22% | Scavenger-Mutant 15% | Scavenger-Skirmisher 9% | Skirmisher 7% | Scavenger-Assassin 4% | Machinist-Scout 4% | Machinist-Mutant Dominant Class ---------------- Scavenger-Mutant | -10/Materials Scavenger-Mutant | -10/Mines Mutant | -9/Materials Mutant | -9/Mines Mutant | -9/Exiles Mutant | -8/Mines Scavenger-Mutant | -8/Materials Scavenger-Mutant | -7/Factory Mutant | -7/Lower Caves Mutant | -7/Lower Caves Mutant | -7/Data Miner Mutant | -6/Proximity Caves Scavenger-Skirmisher | -6/Factory Scavenger-Skirmisher | -6/Lower Caves Scavenger-Skirmisher | -6/Lower Caves Scavenger-Assassin | -6/Zion Scavenger-Assassin | -5/Proximity Caves Skirmisher | -5/Factory Skirmisher | -5/Upper Caves Skirmisher | -5/Upper Caves Assassin | -5/Zhirov Skirmisher | -4/Proximity Caves Machinist-Scout | -4/Factory Machinist-Scout | -4/Waste Machinist-Scout | -4/Factory Machinist-Mutant | -4/Extension Commander-Mutant | -4/Cetus Scavenger-Mutant | -4/Archives Scavenger-Mutant | -4/Hub_04(d) Scavenger-Skirmisher | -3/Research Scavenger-Skirmisher | -2/Research Resources | -11 -10 -10 -9 -9 -9 -8 -8 -7 -7 -7 -7 -6 -6 -6 -6 -6 -5 -5 -5 -5 -5 -4 -4 -4 -4 -4 -4 -4 -4 -3 -2 ----------- Run | Yrd Mat Min Mat Min Exi Min Mat Fac Low Low Dat Pro Fac Low Low Zio Pro Fac Upp Upp Zhi Pro Fac Was Fac Ext Cet Arc Hub Res Res Matter Collected 13272 | 293 407 35 332 32 . 68 525 705 271 261 87 493 410 776 283 785 358 1198 544 220 145 97 899 431 386 728 191 436 1058 818 . Remotely . | . . . . . . . . . . . . . . . . . . . . . . . . . . . . . . . . Salvage Created 20492 | 154 611 80 1301 229 . 276 1130 1726 230 258 170 949 1142 968 . . 333 1708 488 284 286 97 841 1726 489 900 200 443 2444 1029 . Parts 879 | 13 34 3 83 15 . 12 53 112 9 18 3 38 41 32 . . 13 45 15 4 1 4 37 38 21 40 3 29 115 48 . Haulers Intercepted 30 | . 2 . 4 . . . 2 5 . . . . 4 . . . . 6 . . . . 2 . 2 . . . 3 . . Recyclers Shooed 11 | 1 . . 1 . . . . 2 . . . . 3 . . . . 4 . . . . . . . . . . . . . Parts Field Recycled . | . . . . . . . . . . . . . . . . . . . . . . . . . . . . . . . . Retrieved Matter . | . . . . . . . . . . . . . . . . . . . . . . . . . . . . . . . . Parts Self-Destructed 62 | . . . . . . . . . 7 7 . 17 . 20 . . 4 . 3 3 1 . . . . . . . . . . Prevented 30 | . . . . . . . . . 1 7 . 18 . . . . 4 . . . . . . . . . . . . . . Parts Restored . | . . . . . . . . . . . . . . . . . . . . . . . . . . . . . . . . Kills | -11 -10 -10 -9 -9 -9 -8 -8 -7 -7 -7 -7 -6 -6 -6 -6 -6 -5 -5 -5 -5 -5 -4 -4 -4 -4 -4 -4 -4 -4 -3 -2 ------- Run | Yrd Mat Min Mat Min Exi Min Mat Fac Low Low Dat Pro Fac Low Low Zio Pro Fac Upp Upp Zhi Pro Fac Was Fac Ext Cet Arc Hub Res Res Combat Hostiles Destroyed 303 | . 15 3 26 5 . 9 27 32 5 9 2 11 15 16 2 . 10 14 10 5 . . 14 6 5 11 2 1 32 16 . Melee 2 | . . . . . . . . . . . . 1 . . . . . . . . . . . . . . . . 1 . . Guns 103 | . 12 3 18 . . . 2 6 2 . . . 3 9 1 . . . . . . . 2 6 . 9 2 1 16 11 . Cannons 59 | . . . 6 4 . 8 13 5 1 1 . 2 3 . . . 1 7 . 1 . . 4 . . . . . . 3 . AOE 119 | . 3 . 2 . . . 12 18 2 8 . 4 6 7 1 . 9 6 9 4 . . 7 . 5 . . . 14 2 . Classes Destroyed 25 | 3 4 1 5 . . . . 4 1 . . 2 . . 1 . 1 . . . . . . 1 . 1 . . 1 . . Worker 19 | 2 . . 2 . . 1 1 4 . . . . . . . . . 1 . . . . 3 . . . . . 5 . . Builder 14 | . 1 . 2 . . . . 5 . . . . 2 . . . . . . . . . 1 . . . . . 3 . . Tunneler 6 | 3 . . . . . . . . . . . . . . . . . . . . . . . . 1 . . . . 2 . Hauler 30 | . 2 . 4 . . . 2 5 . . . . 4 . . . . 6 . . . . 2 . 2 . . . 3 . . Recycler 8 | 1 . . 1 . . . . 2 . . . . 1 . . . . 2 . . . . . . . . . . 1 . . Minesweeper 4 | . . . . . . . . . 2 . . . . 2 . . . . . . . . . . . . . . . . . Mechanic 1 | . . . . . . . . . . . . . . . . . . . . . . . . . . . . . 1 . . Operator 12 | . . . 2 . . . . . . . . . . . . . . 1 . . . . . . . . . 9 . . . Drone 2 | . . . . . . . . . . . . 2 . . . . . . . . . . . . . . . . . . . Watcher 10 | . . . 1 . . . 1 2 . . . . 2 . . . . 1 . . . . . . . . 2 . 1 . . Swarmer 53 | . 3 . 4 . . 6 5 9 2 8 . . . . . . 4 3 6 . . . 3 . . . . . . . . Grunt 113 | . 12 2 9 3 . 3 18 6 3 . . . 3 9 . . 5 1 1 4 . . 2 . 5 3 . . 20 4 . Brawler 8 | . . . 1 . . . . . . . . . . 3 . . . . 2 . . . . . . 1 . . 1 . . Duelist 6 | . . . 2 . . . . . . . . . . 3 . . . . . . . . . . . . . . 1 . . Protector 6 | . . . . . . . . 3 . . . 3 . . . . . . . . . . . . . . . . . . . Sentry 41 | . . . 10 2 . . 4 2 . . . 1 3 1 . . . 3 1 1 . . 1 . . 5 . 1 3 3 . Demolisher 4 | . . . . . . . . . . . . 4 . . . . . . . . . . . . . . . . . . . Specialist 7 | . . . . . . . . 4 . . . . 3 . . . . . . . . . . . . . . . . . . Hunter 19 | . . . . . . . . 2 . . . 1 3 . . . 1 5 . . . . 4 . . . . . . 3 . Programmer 29 | . . . . . . . . 6 . 1 . . 3 . . . . 3 . . . . 4 . . . . . 6 6 . Behemoth 3 | . . . . . . . . . . . . . . . . . . . . . . . . . . 2 . . 1 . . Compactor 6 | . . . . . . . . . . . . . . . . . . . . . . . . 6 . . . . . . . Cetus Guard 2 | . . . . . . . . . . . . . . . . . . . . . . . . . . . 2 . . . . Enhanced Grunt 2 | . . . . . . . . . . . 2 . . . . . . . . . . . . . . . . . . . . Decomposer 1 | . . . . . . . . . . . . . . . . . . . . . . 1 . . . . . . . . . Packrat 1 | . . . . . . . . . . . . . . 1 . . . . . . . . . . . . . . . . . Samaritan 6 | . . . . . . . . . . . . . . . . . 2 . 2 . . 2 . . . . . . . . . Thief 2 | . . . . . . . . . . . . . . . 2 . . . . . . . . . . . . . . . . Assembled 1 | . . 1 . . . . . . . . . . . . . . . . . . . . . . . . . . . . . Wasp 3 | . . . . . . . . . . . . . . . . . . . . . . . . . 3 . . . . . . Thug 1 | . . . . . . . . . . . . . . . . . . . . . . . . . . . . 1 . . . Martyr 1 | . . . . . . . . . . . . . . . . . . . . . . . . 1 . . . . . . . Best Kill Streak 24 | 6 6 2 6 3 . 4 4 13 2 4 1 2 8 7 2 . 5 4 5 4 . . 5 1 5 4 3 2 24 4 . Combat Bots Only 16 | . 6 2 5 3 . 4 4 11 2 4 1 2 7 7 2 . 5 3 5 4 . . 4 1 4 4 2 1 16 4 . Max Kills in Single Turn 5 | 1 3 1 2 1 . 1 3 4 1 2 1 1 5 2 1 . 3 3 5 2 . 1 3 1 3 1 1 1 4 1 . Gunslinging . | . . . . . . . . . . . . . . . . . . . . . . . . . . . . . . . . Exploded 5 | . 3 . 1 . . . 2 4 1 2 . 1 4 2 1 . 3 2 5 2 . . 3 . 2 . . . 4 1 . Melee 1 | . . . . . . . . . . . . 1 . . . . . . . . . . . . . . . . 1 . . Uniques/NPCs Destroyed . | . . . . . . . . . . . . . . . . . . . . . . . . . . . . . . . . Combat | -11 -10 -10 -9 -9 -9 -8 -8 -7 -7 -7 -7 -6 -6 -6 -6 -6 -5 -5 -5 -5 -5 -4 -4 -4 -4 -4 -4 -4 -4 -3 -2 -------- Run | Yrd Mat Min Mat Min Exi Min Mat Fac Low Low Dat Pro Fac Low Low Zio Pro Fac Upp Upp Zhi Pro Fac Was Fac Ext Cet Arc Hub Res Res Hostile Shots Fired 1445 | . 88 13 88 12 . 60 94 79 12 19 21 24 169 51 24 . 6 89 1 4 . . 76 . 18 84 17 5 184 207 . Missed 502 | . 16 2 20 3 . 16 35 33 4 8 6 11 67 11 9 . . 25 1 1 . . 31 . 9 37 4 1 82 70 . Hits 943 | . 72 11 68 9 . 44 59 46 8 11 15 13 102 40 15 . 6 64 . 3 . . 45 . 9 47 13 4 102 137 . Melee 17 | . . . 10 . . . . . . . . . . . . . . . . . . . . . . . . . 7 . . Projectile 926 | . 72 11 58 9 . 44 59 46 8 11 15 13 102 40 15 . 6 64 . 3 . . 45 . 9 47 13 4 95 137 . AOE 7 | . . . . . . . . . . . . 5 . . . . . 2 . . . . . . . . . . . . . Critical Strikes 53 | . 1 . 5 2 . 4 4 2 . 1 . . 2 2 1 . . 5 . . . . 4 . . 4 1 . 9 6 . Actively Blocked 8 | . . . . . . . . . . . . . . . . . . . . . . . . . . . . . 2 6 . Part Disruptions 3 | . . . . . . . . . . . . . . . . . . . . . . . 1 . . . . . . 2 . Damage Taken 17785 | . 901 144 1084 130 . 434 872 748 122 196 724 365 1538 832 297 . 107 1470 126 66 . . 850 . 180 905 379 79 2053 3183 . Core 1840 | . 129 27 99 14 . 36 173 55 13 27 45 16 186 60 24 . 29 74 . . . . 55 . 27 34 17 40 147 513 . Absorbed by Shields 780 | . . . . . . . . . . . . . . . 29 . . . . . . . 93 . 48 264 138 28 180 . . Redirected to Shielding 308 | . . . . . . . . . . . . . . . . . . . . . . . . . . 49 . . 259 . . Regen/Repaired (Parts) 1264 | . . . . . . . . . . . . . . . . . . 735 . . . . . 1 . . . 12 194 322 . Core Remaining (%) 70 | 100 . 37 . . . 62 68 . . . . 77 . . . . 64 . . . . 92 . . . . . . 72 60 . Volleys Fired 1178 | 19 77 12 71 8 . 33 72 80 14 11 45 44 53 57 59 . 9 97 30 10 . 9 61 41 33 44 17 36 72 64 . Largest 3 | 2 2 2 2 2 . 2 2 2 2 2 2 2 2 2 2 . 2 2 2 2 . 2 2 2 2 2 2 2 2 3 . Hottest 183 | 40 105 105 136 136 . 136 136 148 148 148 148 153 160 160 160 . 98 140 98 80 . 70 105 60 80 105 65 65 70 183 . Shots Fired 2046 | 38 117 24 135 16 . 67 128 154 25 15 66 61 99 111 69 . 16 161 59 15 . 19 94 78 41 86 30 74 132 116 . Gun 1022 | 38 116 24 86 . . . 20 67 11 4 14 2 35 98 12 . . . . . . . 19 74 15 83 30 74 122 78 . Cannon 857 | . . . 43 16 . 67 91 67 11 2 51 38 59 . 52 . 8 152 49 9 . 19 67 4 18 3 . . . 31 . Launcher 165 | . 1 . 6 . . . 17 20 3 9 . 21 4 13 5 . 8 9 10 6 . . 8 . 8 . . . 10 7 . Special 2 | . . . . . . . . . . . 1 . 1 . . . . . . . . . . . . . . . . . . Kinetic 673 | 38 60 . 12 . . . 20 48 . . . . . . . . . . . . . . 19 74 15 83 30 74 122 78 . Thermal 1177 | . 56 24 117 16 . 67 91 86 22 6 57 19 94 98 64 . 8 152 49 9 . 19 67 4 18 3 . . . 31 . Explosive 117 | . 1 . 6 . . . 15 7 . 1 . 2 4 13 5 . 8 6 10 6 . . 8 . 8 . . . 10 7 . Electromagnetic 77 | . . . . . . . 2 13 3 8 8 40 . . . . . 3 . . . . . . . . . . . . . Robot Hit Streak 56 | 7 10 7 20 5 . 7 11 14 17 8 22 6 56 14 7 . 7 7 10 6 . 6 5 7 4 8 5 7 11 9 . Robot Miss Streak 7 | 3 3 2 6 1 . 7 3 3 2 2 1 2 1 3 1 . 1 4 1 1 . 1 4 2 5 3 5 4 7 3 . Penetration Max 2 | . . . . . . . . . . . . . . . . . . . . . . . 2 . . 2 1 1 1 1 . Secondary Targets 10 | . . . 2 . . . . . . . . . 1 1 . . . . . . . . 1 . . 1 . . 3 1 . Max Gunslinging Chain 1 | . . . 1 . . . . . . . . . 1 1 . . . . . . . . 1 . . 1 . . 1 1 . Shots Hit Robots 1184 | 21 78 18 99 9 . 37 65 99 19 4 38 62 69 68 8 . 8 77 15 3 5 9 36 56 14 55 17 40 92 63 . Core Hits 850 | 7 34 7 86 5 . 12 56 87 15 14 18 30 55 41 6 . 21 45 17 13 2 4 39 19 30 28 10 23 92 34 . Critical Kills 37 | . . . . 1 . . . 3 . . . . . 2 . . . 1 2 . . . 2 . . 5 2 7 8 4 . Critical Parts Destroyed 32 | . 1 . . . . . . . . . . . . 2 . . . . . . . . 1 1 . 7 2 5 9 4 . Critical Strikes 86 | . 3 . 3 1 . . . 3 . . . 4 . 4 . . . 1 2 . . . 3 4 3 12 4 14 17 8 . Burn 5 | . 2 . 3 . . . . . . . . . . . . . . . . . . . . . . . . . . . . Meltdown 8 | . . . . 1 . . . 3 . . . . . . . . . 1 2 . . . 1 . . . . . . . . Destroy 66 | . 1 . . . . . . . . . . . . 4 . . . . . . . . 2 4 . 12 4 14 17 8 . Sever 4 | . . . . . . . . . . . . 4 . . . . . . . . . . . . . . . . . . . Impale 3 | . . . . . . . . . . . . . . . . . . . . . . . . . 3 . . . . . . Melee Attacks 87 | . . . . . . . . . . . . 42 . . . . 2 2 . . 5 . . 2 8 2 . . 17 7 . Impact . | . . . . . . . . . . . . . . . . . . . . . . . . . . . . . . . . Slashing 42 | . . . . . . . . . . . . 42 . . . . . . . . . . . . . . . . . . . Piercing 45 | . . . . . . . . . . . . . . . . . 2 2 . . 5 . . 2 8 2 . . 17 7 . Sneak Attacks 14 | . . . . . . . . . . . . 3 . . . . 2 2 . . . . . 2 1 . . . 4 . . Combat Hostiles . | . . . . . . . . . . . . . . . . . . . . . . . . . . . . . . . . Follow-up Attacks . | . . . . . . . . . . . . . . . . . . . . . . . . . . . . . . . . Damage Inflicted 52926 | 260 1211 237 2089 193 . 818 2432 4684 485 515 621 3167 3501 3556 530 . 1280 4350 1158 1009 319 287 2642 1881 2715 1919 848 1346 6296 2577 . Guns 17879 | 260 1064 237 1165 . . . 176 1037 252 82 287 11 1055 1686 176 . . . . . . . 518 1685 205 1919 848 1346 2538 1332 . Cannons 10885 | . . . 620 193 . 785 1111 993 166 52 334 414 1039 . . . 191 2680 385 95 . 287 765 . . . . . . 775 . Explosions 20137 | . 102 . 265 . . . 1108 2591 67 381 . 724 1332 1870 354 . 950 1483 773 914 . . 1359 . 2153 . . . 3254 457 . Melee 3571 | . . . . . . . . . . . . 2018 . . . . 139 131 . . 319 . . 196 357 . . . 411 . . Ramming 454 | . 45 . 39 . . 33 37 63 . . . . 75 . . . . 56 . . . . . . . . . . 93 13 . Kinetic 12036 | 260 530 . 135 . . . 176 544 . . . . . . . . . . . . . . 518 1685 205 1919 848 1346 2538 1332 . Thermal 17718 | . 534 237 1650 193 . 785 1190 1953 418 151 511 105 2094 1686 176 . 191 2869 385 95 . 287 1048 . 140 . . . 245 775 . Explosive 16576 | . 102 . 265 . . . 971 1189 . . . 165 1332 1870 354 . 950 1136 773 914 . . 1076 . 2013 . . . 3009 457 . Electromagnetic 2571 | . . . . . . . 58 935 67 364 110 879 . . . . . 158 . . . . . . . . . . . . . Impact . | . . . . . . . . . . . . . . . . . . . . . . . . . . . . . . . . Slashing 2018 | . . . . . . . . . . . . 2018 . . . . . . . . . . . . . . . . . . . Piercing 1553 | . . . . . . . . . . . . . . . . . 139 131 . . 319 . . 196 357 . . . 411 . . Highest Corruption 31 | . 1 1 1 1 1 1 . 1 1 1 1 11 4 4 4 4 5 6 6 6 6 6 3 3 3 3 3 3 7 31 . Average Corruption 3 | . 1 1 1 1 1 1 . 1 1 1 1 3 2 4 4 4 5 5 6 6 6 6 1 3 3 3 3 3 3 14 . Corruption Purged . | . . . . . . . . . . . . . . . . . . . . . . . . . . . . . . . . Corruption Blocked . | . . . . . . . . . . . . . . . . . . . . . . . . . . . . . . . . Effects 398 | . 1 6 9 11 4 10 . 7 10 12 4 32 13 29 31 1 7 44 24 17 8 17 12 7 11 17 3 14 9 28 . Message Errors 87 | . . 3 2 3 . 3 . 1 5 2 . 6 . 6 9 . 2 9 6 7 1 1 3 . 2 3 1 4 3 5 . Matter Fused 100 | . 1 1 2 3 1 3 . 1 1 4 2 7 5 6 6 . 1 10 7 . 4 7 4 4 1 5 1 4 2 7 . Heat Flow Errors 52 | . . 1 . 1 2 2 . 4 . 1 . 4 2 3 3 . 1 5 4 5 . 1 1 . 2 5 . 1 2 2 . Energy Discharges 41 | . . 1 . 2 . . . 1 2 . . 3 1 5 5 . . 5 2 1 3 4 . . . . 1 . . 5 . Parts Rejected 3 | . . . . . . . . . . . . . . . . . . . 1 . . . . . 1 . . . 1 . . Parts Fused 5 | . . . 1 . . . . . 1 . . . . . . . . 1 . . . . 1 . . . . . 1 . . Data Loss (minor) 39 | . . . 2 . 1 . . . 1 1 1 3 3 1 3 1 2 4 1 1 . 2 1 2 3 2 . 2 . 2 . Data Loss (major) 31 | . . . 2 1 . 1 . . . 2 1 5 . 7 3 . 1 1 . . . 1 . 1 . 1 . 1 . 3 . Misfires 24 | . . . . . . 1 . . . 2 . 2 1 . 2 . . 4 2 2 . 1 2 . 2 1 . 2 . . . Alerts 5 | . . . . 1 . . . . . . . 1 1 1 . . . . . . . . . . . . . . . 1 . Weapon Failures 11 | . . . . . . . . . . . . 1 . . . . . 5 1 1 . . . . . . . . . 3 . Overload Shots 7 | . . . . . . . . . . . . . 1 . . . . 2 . . . . 1 . . 3 . . . . . Effects 1 | . . . . . . . . . . . . . . . . . . . . . . . . . . 1 . . . . . Energy Bleed 1 | . . . . . . . . . . . . . . . . . . . . . . . . . . 1 . . . . . Overflow Damage 1583 | . . . 38 . . 23 34 105 3 1 . 247 58 29 9 . 52 156 107 21 171 12 151 25 137 . . . 171 33 . Projectiles 381 | . . . 1 . . 23 17 37 3 . . 3 20 . . . 52 109 69 . . 12 2 . . . . . . 33 . Explosions 648 | . . . 37 . . . 17 68 . 1 . 21 38 29 9 . . 47 38 21 . . 149 . 60 . . . 113 . . Melee 554 | . . . . . . . . . . . . 223 . . . . . . . . 171 . . 25 77 . . . 58 . . Knockbacks 4 | . . . . . . . . . . . . . 2 . . . . . . . . . . . . . . . 2 . . Impact 4 | . . . . . . . . . . . . . 2 . . . . . . . . . . . . . . . 2 . . Kinetic . | . . . . . . . . . . . . . . . . . . . . . . . . . . . . . . . . Secondary . | . . . . . . . . . . . . . . . . . . . . . . . . . . . . . . . . Self-Inflicted Damage 714 | . . . 32 . . . 34 . 4 29 . 92 149 54 . . . 67 129 . . . . . . . . . 46 78 . Shots 16 | . . . 1 . . . 2 . 1 1 . 3 3 1 . . . 1 2 . . . . . . . . . . 1 . Rammed 9 | . 4 . . . . . . . . . . . . . . . . . . . . . . . . . . . 3 2 . Targets Rammed 59 | . 14 . 11 . . 6 8 4 . . . . 6 . . . . 5 . . . . . . . . . . 3 2 . Kicked 50 | . 10 . 11 . . 6 8 4 . . . . 6 . . . . 5 . . . . . . . . . . . . . Crushed . | . . . . . . . . . . . . . . . . . . . . . . . . . . . . . . . . Highest Temperature 454 | . 122 146 66 161 184 251 245 256 293 138 356 229 216 258 454 . 70 221 244 204 . 75 247 . 306 268 . 183 345 240 . Average Temperature 69 | . 27 45 18 36 84 82 47 37 99 56 81 51 49 92 120 . 49 73 112 104 . 50 130 . 131 95 . 54 75 47 . Received Heat Transfer 3716 | . 513 126 306 105 . 153 477 72 63 . . 18 225 312 282 . . 162 . 18 . . 123 . 30 181 36 6 397 111 . Effects 12 | . . . . . . . . . 1 . . . . 2 6 . . . . . . . . . 3 . . . . . . Shutdowns 2 | . . . . . . . . . . . . . . . 2 . . . . . . . . . . . . . . . . Interference 7 | . . . . . . . . . 1 . . . . 2 2 . . . . . . . . . 2 . . . . . . Short Circuit 1 | . . . . . . . . . . . . . . . 1 . . . . . . . . . . . . . . . . Damage (minor) 2 | . . . . . . . . . . . . . . . 1 . . . . . . . . . 1 . . . . . . Siege Activations . | . . . . . . . . . . . . . . . . . . . . . . . . . . . . . . . . Martial Activations . | . . . . . . . . . . . . . . . . . . . . . . . . . . . . . . . . Shielding Activations . | . . . . . . . . . . . . . . . . . . . . . . . . . . . . . . . . Robots Disrupted 1 | . . . . . . . . . . . . . 1 . . . . . . . . . . . . . . . . . . Combat Hostiles 1 | . . . . . . . . . . . . . 1 . . . . . . . . . . . . . . . . . . Robots Corrupted 6 | . . . . . . . . . . . 1 4 . . . . . . . . . . . . . . . . 1 . . Combat Hostiles 5 | . . . . . . . . . . . 1 4 . . . . . . . . . . . . . . . . . . . Parts Fried 25 | . . . . . . . . 1 . 1 2 16 . . . . 2 1 . . . . . . . . . . 2 . . Impact Corruptions 1 | . . . . . . . . . . . . . . . . . . . . . . . . . . . . . 1 . . Robots Melted 17 | . . . . 1 . 1 . 4 . . 1 . 5 . . . . 2 2 . . . 1 . . . . . . . . Combat Hostiles 12 | . . . . 1 . 1 . 3 . . 1 . 3 . . . . 1 1 . . . 1 . . . . . . . . Parts Melted 67 | . 2 1 5 2 . 2 6 7 2 2 4 . 18 2 . . . 9 1 . . 1 2 . . . . . . 1 . Heat Transferred 29135 | . 1398 546 2945 333 . 1369 2111 3152 871 274 1542 50 3975 2590 259 . 300 4104 600 150 . 450 1250 . 100 . . . 100 666 . Parts Sabotaged 4 | . . . . . . . . . . . . . . . . . . . . . . . . . . . . . 4 . . Parts Stolen . | . . . . . . . . . . . . . . . . . . . . . . . . . . . . . . . . Parts Stripped . | . . . . . . . . . . . . . . . . . . . . . . . . . . . . . . . . Power Chain Reactions 21 | . . . . . . . 2 5 1 2 . 4 2 . . . . . . . . . 1 . 1 . . . 3 . . Alert | -11 -10 -10 -9 -9 -9 -8 -8 -7 -7 -7 -7 -6 -6 -6 -6 -6 -5 -5 -5 -5 -5 -4 -4 -4 -4 -4 -4 -4 -4 -3 -2 ------- Run | Yrd Mat Min Mat Min Exi Min Mat Fac Low Low Dat Pro Fac Low Low Zio Pro Fac Upp Upp Zhi Pro Fac Was Fac Ext Cet Arc Hub Res Res Maximum Alert Level 4 | . . . 2 . . . 2 3 . . . . 1 . . . . 3 . . . . 4 2 3 4 2 2 4 3 2 Low Security (%) 40 | 100 100 100 45 100 . 100 11 . . . . . 12 . . . . 59 . . . . 30 . 3 . . . 21 . . Level 1 25 | . . . 45 . . . 43 22 . . . . 87 . . . . 3 . . . . 10 83 . 54 . 49 37 . . Level 2 21 | . . . 9 . . . 45 70 . . . . . . . . . 12 . . . . 5 16 48 18 100 50 9 60 100 Level 3 10 | . . . . . . . . 7 . . . . . . . . . 24 . . . . 35 . 47 21 . . 2 39 . Level 4 2 | . . . . . . . . . . . . . . . . . . . . . . . 18 . . 5 . . 29 . . Level 5 . | . . . . . . . . . . . . . . . . . . . . . . . . . . . . . . . . High Security . | . . . . . . . . . . . . . . . . . . . . . . . . . . . . . . . . Max Security . | . . . . . . . . . . . . . . . . . . . . . . . . . . . . . . . . Peak Influence 1370 | 10 169 52 425 70 . 87 666 759 . . . . 379 . . . . 939 . . . . 1170 411 860 1119 674 483 1370 874 468 Initial 693 | . . 20 . 30 . . . 298 . . . . 300 . . . . 123 . . . . . 403 185 329 604 249 107 693 468 Average 328 | 1 66 5 209 8 . 15 396 457 . . . . 256 . . . . 345 . . . . 647 354 687 508 600 399 606 699 468 Influence Increases 15808 | 30 511 58 981 110 . 229 1219 1093 120 210 . 185 889 490 45 . 325 1653 215 115 5 . 1668 60 1017 1288 400 356 1731 805 . Destroy 0b10 Robot/C 7100 | . 300 40 540 100 . 180 700 640 100 180 . 120 300 320 . . 220 560 200 100 . . 440 . 240 540 160 80 700 340 . Destroy 0b10 Robot/NC 710 | 30 15 . 60 . . 5 45 105 10 . . 55 45 10 . . . 100 5 5 5 . 40 . 25 15 10 45 70 10 . Destroy Leader 1396 | . 74 10 160 10 . 20 164 152 10 30 . 10 92 10 . . 30 132 10 10 . . 126 . 48 50 . . 158 90 . Allied During Kill 1606 | . . 8 3 . . . 57 35 . . . . . . . . 75 215 . . . . 122 . 272 420 168 98 128 5 . Successful Hack 324 | . 49 . 47 . . 9 34 30 . . . . 51 . . . . 33 . . . . 32 . . 21 . . 18 . . Select Force Hacks 150 | . 60 . 30 . . . 60 . . . . . . . . . . . . . . . . . . . . . . . . Disable Machine 945 | . . . 30 . . . 60 30 . . . . 15 . . . . 195 . . . . 225 . 120 75 . 75 120 . . Anti-Garrison Action 300 | . . . . . . . . . . . . . . . . . . . . . . . . . 150 . . . 150 . . Destroy Structure 2182 | . 13 . 36 . . . 99 41 . . . . 71 . . . . 388 . . . . 548 60 102 122 62 58 312 270 . Advance Influence 300 | . . . . . . . . . . . . . 300 . . . . . . . . . . . . . . . . . . Partial Spotted 135 | . . . . . . 15 . 15 . . . . . . . . . . . . . . 15 . 45 15 . . 15 15 . Lose Combat Pursuer 660 | . . . 75 . . . . 45 . . . . 15 150 45 . . 30 . . . . 120 . 15 30 . . 60 75 . Influence Decreases 15340 | 30 458 111 904 187 . 229 561 995 702 330 54 183 546 655 225 . 128 919 708 388 170 . 515 948 610 881 855 673 716 1293 366 Entered New Map 4861 | . . 33 . 47 . . . 360 280 34 54 . 2 129 35 . . 74 346 84 165 . . 750 80 343 475 375 200 629 366 Time Decay 8331 | 30 378 78 541 140 . 219 511 565 422 296 . 173 494 486 187 . 128 573 362 294 5 . 435 198 270 478 130 278 286 374 . Lost Part 643 | . 80 . 40 . . 10 50 10 . . . 10 50 40 3 . . 10 . 10 . . . . . . 10 . 70 250 . Lost Ally 1205 | . . . 23 . . . . 60 . . . . . . . . . 262 . . . . 80 . 260 60 240 20 160 40 . Purge Threat 300 | . . . 300 . . . . . . . . . . . . . . . . . . . . . . . . . . . . Squads Dispatched 91 | . 5 . 2 . . . 8 12 . . . . 8 . . . . 12 . . . . 15 . 6 1 . . 15 7 . Investigation 22 | . 3 . 2 . . . 4 1 . . . . 1 . . . . . . . . . 8 . . . . . 2 1 . Extermination 18 | . . . . . . . . 3 . . . . 3 . . . . 3 . . . . 4 . . . . . 2 3 . Reinforcement 29 | . 2 . . . . . 3 2 . . . . 3 . . . . 8 . . . . 2 . 2 1 . . 4 2 . Assault 10 | . . . . . . . . . . . . . . . . . . 1 . . . . 1 . 4 . . . 3 1 . Garrison 12 | . . . . . . . 1 6 . . . . 1 . . . . . . . . . . . . . . . 4 . . Intercept . | . . . . . . . . . . . . . . . . . . . . . . . . . . . . . . . . Searches Triggered . | . . . . . . . . . . . . . . . . . . . . . . . . . . . . . . . . Construction Impeded 8 | . . . . . . . 1 1 . . . . . . . . . 2 . . . . . . 1 1 . . 1 1 . Haulers Reinforced 9 | . . . . . . . . 1 . . . . 2 . . . . 4 . . . . . . 1 . . . 1 . . Active Scanning Responses . | . . . . . . . . . . . . . . . . . . . . . . . . . . . . . . . . Cargo Convoy Interrupts 2 | . . . . . . . . 1 . . . . 1 . . . . . . . . . . . . . . . . . . Stealth | -11 -10 -10 -9 -9 -9 -8 -8 -7 -7 -7 -7 -6 -6 -6 -6 -6 -5 -5 -5 -5 -5 -4 -4 -4 -4 -4 -4 -4 -4 -3 -2 --------- Run | Yrd Mat Min Mat Min Exi Min Mat Fac Low Low Dat Pro Fac Low Low Zio Pro Fac Upp Upp Zhi Pro Fac Was Fac Ext Cet Arc Hub Res Res Distress Signals 59 | . 2 . 2 . . . 3 2 . . . 29 1 . . . . 2 . . . . 4 . 1 2 2 . 7 2 . Communications Jammed 8 | . . . . . . . . . . . . . . . . . . . . . . . . . . 6 . . 2 . . Distress Signals 8 | . . . . . . . . . . . . . . . . . . . . . . . . . . 6 . . 2 . . Times Spotted 533 | . 29 3 43 5 . 10 41 41 6 8 4 11 30 17 4 . 5 51 5 3 . . 46 6 25 32 11 21 55 21 . Peak Tracking Total 13 | . 6 2 8 3 . 4 5 12 3 4 2 2 12 9 1 . 3 5 5 4 . . 7 1 5 6 5 1 13 6 . Tactical Retreats 28 | . . . 3 . . . . 2 . . . . 1 4 3 . . 2 . . . . 4 . 2 2 . . 3 2 . ECM-based Alert Blocks 2 | . . . . . . . . . . . . . . . . . . . . . . . . . 2 . . . . . . Traps | -11 -10 -10 -9 -9 -9 -8 -8 -7 -7 -7 -7 -6 -6 -6 -6 -6 -5 -5 -5 -5 -5 -4 -4 -4 -4 -4 -4 -4 -4 -3 -2 ------- Run | Yrd Mat Min Mat Min Exi Min Mat Fac Low Low Dat Pro Fac Low Low Zio Pro Fac Upp Upp Zhi Pro Fac Was Fac Ext Cet Arc Hub Res Res Traps Triggered 18 | . 4 . . . . . 1 . . . . 2 3 . . . . . . . . . 3 . . 4 . . . 1 . Indirectly 1 | . . . . . . . . . . . . 1 . . . . . . . . . . . . . . . . . . . Trap Hack Attempts . | . . . . . . . . . . . . . . . . . . . . . . . . . . . . . . . . Triggered . | . . . . . . . . . . . . . . . . . . . . . . . . . . . . . . . . Disarmed . | . . . . . . . . . . . . . . . . . . . . . . . . . . . . . . . . Reprogrammed . | . . . . . . . . . . . . . . . . . . . . . . . . . . . . . . . . Reused 3 | . . . . . . . . . . . 1 . . . 2 . . . . . . . . . . . . . . . . Traps Extracted . | . . . . . . . . . . . . . . . . . . . . . . . . . . . . . . . . Installed 5 | . . . . . . . . . . . 2 . . . 3 . . . . . . . . . . . . . . . . Triggered 2 | . . . . . . . . . . . . . . . 2 . . . . . . . . . . . . . . . . Fabricated Traps 9 | . . . . . . . . . . . . . . . . 9 . . . . . . . . . . . . . . . Most Traps Carried 6 | . . . . . . . . . 2 2 2 . . 6 6 6 6 6 6 6 6 6 6 . . . . . . . . Machines | -11 -10 -10 -9 -9 -9 -8 -8 -7 -7 -7 -7 -6 -6 -6 -6 -6 -5 -5 -5 -5 -5 -4 -4 -4 -4 -4 -4 -4 -4 -3 -2 ---------- Run | Yrd Mat Min Mat Min Exi Min Mat Fac Low Low Dat Pro Fac Low Low Zio Pro Fac Upp Upp Zhi Pro Fac Was Fac Ext Cet Arc Hub Res Res Machines Disabled 83 | . . . 2 . . . 4 2 . . 1 9 1 2 4 . . 13 . . . . 15 . 9 6 1 5 9 . . Max in Single Turn 5 | . . . 1 . . . 2 1 . . 1 2 1 2 3 . . 4 . . . . 5 . 3 1 . 1 1 . . Garrison Access 6 | . . . . . . . . 1 . . . . . . . . . 1 . . . . 2 . 1 . . . 1 . . Machines Repaired . | . . . . . . . . . . . . . . . . . . . . . . . . . . . . . . . . Machines Dismantled . | . . . . . . . . . . . . . . . . . . . . . . . . . . . . . . . . Machines Sabotaged . | . . . . . . . . . . . . . . . . . . . . . . . . . . . . . . . . Overloaded Fab Kills . | . . . . . . . . . . . . . . . . . . . . . . . . . . . . . . . . Hacking | -11 -10 -10 -9 -9 -9 -8 -8 -7 -7 -7 -7 -6 -6 -6 -6 -6 -5 -5 -5 -5 -5 -4 -4 -4 -4 -4 -4 -4 -4 -3 -2 --------- Run | Yrd Mat Min Mat Min Exi Min Mat Fac Low Low Dat Pro Fac Low Low Zio Pro Fac Upp Upp Zhi Pro Fac Was Fac Ext Cet Arc Hub Res Res Machines Accessed 102 | . 9 2 13 . 1 1 11 11 . . 3 . 8 . 2 . 1 11 . . 4 . 11 . 1 7 1 . 2 3 . Terminals 46 | . 6 2 11 . . 1 8 4 . . . . 5 . 1 . 1 . . . . . . . . 6 1 . . . . Fabricators 10 | . . . . . . . . . . . . . 1 . . . . 3 . . . . 5 . 1 . . . . . . Repair Stations 5 | . 1 . . . . . . . . . . . . . . . . 3 . . . . . . . . . . . 1 . Recycling Units 17 | . 2 . 1 . . . 2 4 . . . . 1 . . . . 3 . . . . 2 . . 1 . . . 1 . Scanalyzers 5 | . . . 1 . . . . 1 . . . . . . . . . . . . . . 2 . . . . . . 1 . Garrison Access 10 | . . . . . . . 1 2 . . . . 1 . . . . 2 . . . . 2 . . . . . 2 . . Total Hacks 297 | . 26 4 52 . 1 3 34 23 . . 24 . 21 . 2 . 1 29 . . 17 . 31 . 6 13 2 . 3 5 . Successful 174 | . 14 1 28 . 1 2 20 7 . . 24 . 9 . 2 . 1 20 . . 17 . 18 . 4 5 . . 1 . . Failed 121 | . 12 3 23 . . 1 14 15 . . . . 12 . . . . 9 . . . . 13 . 2 8 2 . 2 5 . Catastrophic 25 | . 4 1 2 . . . 2 4 . . . . 1 . . . . 4 . . . . 1 . . 2 . . 1 3 . Database Lockouts 2 | . . . 1 . . . . 1 . . . . . . . . . . . . . . . . . . . . . . . Manual 252 | . 24 3 25 . . 3 33 3 . . . . 16 . . . . 35 . . . . 46 . 11 25 . . 21 7 . Terminals 137 | . 22 4 42 . . 3 29 8 . . . . 13 . 1 . 1 . . . . . . . . 12 2 . . . . Fabricators 40 | . . . . . . . . . . . . . 2 . . . . 13 . . . . 19 . 6 . . . . . . Repair Stations 12 | . 2 . . . . . . . . . . . . . . . . 8 . . . . . . . . . . . 2 . Recycling Units 28 | . 2 . 1 . . . 2 9 . . . . 4 . . . . 4 . . . . 3 . . 1 . . . 2 . Scanalyzers 19 | . . . 9 . . . . 3 . . . . . . . . . . . . . . 6 . . . . . . 1 . Garrison Access 18 | . . . . . . . 3 3 . . . . 2 . . . . 4 . . . . 3 . . . . . 3 . . Terminal Hacks 66 | . 1 1 11 . 1 1 1 . . . 24 . 2 . 2 . 1 . . . 17 . . . . 4 . . . . . Record 14 | . . . . . 1 . . . . . 6 . . . 1 . 1 . . . 5 . . . . . . . . . . Part Schematic 17 | . . . . . . . . . . . 12 . 1 . . . . . . . 4 . . . . . . . . . . Robot Schematic 3 | . . . . . . . . . . . 3 . . . . . . . . . . . . . . . . . . . . Robot Analysis 8 | . 1 1 2 . . . . . . . . . . . . . . . . . 4 . . . . . . . . . . Prototype ID Bank 9 | . . . 2 . . . . . . . 3 . . . . . . . . . 4 . . . . . . . . . . Open Door 5 | . . . . . . . . . . . . . . . 1 . . . . . . . . . . 4 . . . . . Level Access Points 2 | . . . 1 . . 1 . . . . . . . . . . . . . . . . . . . . . . . . . Branch Access Points 2 | . . . 1 . . . . . . . . . 1 . . . . . . . . . . . . . . . . . . Terminal Index 2 | . . . 1 . . . 1 . . . . . . . . . . . . . . . . . . . . . . . . Unreport Threat 2 | . . . 2 . . . . . . . . . . . . . . . . . . . . . . . . . . . . Recall Reinforcements 1 | . . . 1 . . . . . . . . . . . . . . . . . . . . . . . . . . . . Hauler Manifests 1 | . . . 1 . . . . . . . . . . . . . . . . . . . . . . . . . . . . Fabricator Hacks 20 | . . . . . . . . . . . . . 1 . . . . 9 . . . . 7 . 3 . . . . . . Network Status 4 | . . . . . . . . . . . . . 1 . . . . 1 . . . . 1 . 1 . . . . . . Load Schematic 10 | . . . . . . . . . . . . . . . . . . 4 . . . . 5 . 1 . . . . . . Build 6 | . . . . . . . . . . . . . . . . . . 4 . . . . 1 . 1 . . . . . . Repair Station Hacks 7 | . 1 . . . . . . . . . . . . . . . . 6 . . . . . . . . . . . . . Scan Component 3 | . . . . . . . . . . . . . . . . . . 3 . . . . . . . . . . . . . Repair 3 | . . . . . . . . . . . . . . . . . . 3 . . . . . . . . . . . . . Refit 1 | . 1 . . . . . . . . . . . . . . . . . . . . . . . . . . . . . . Recycling Unit Hacks 7 | . . . . . . . . 3 . . . . 1 . . . . 1 . . . . 1 . . 1 . . . . . Retrieve Components 7 | . . . . . . . . 3 . . . . 1 . . . . 1 . . . . 1 . . 1 . . . . . Scanalyzer 10 | . . . 6 . . . . 1 . . . . . . . . . . . . . . 3 . . . . . . . . Insert Component 2 | . . . 1 . . . . . . . . . . . . . . . . . . . 1 . . . . . . . . Analyze 3 | . . . 2 . . . . . . . . . . . . . . . . . . . 1 . . . . . . . . Retrieve Study 5 | . . . 3 . . . . 1 . . . . . . . . . . . . . . 1 . . . . . . . . Garrison Access Hacks 5 | . . . . . . . 1 1 . . . . . . . . . 1 . . . . 2 . . . . . . . . Unlock Access 1 | . . . . . . . 1 . . . . . . . . . . . . . . . . . . . . . . . . Seal Access 4 | . . . . . . . . 1 . . . . . . . . . 1 . . . . 2 . . . . . . . . Unauthorized Hacks 59 | . 12 . 11 . . 1 18 2 . . . . 5 . . . . 3 . . . . 5 . 1 . . . 1 . . Terminals 40 | . 10 . 10 . . 1 15 . . . . . 4 . . . . . . . . . . . . . . . . . . Track 5 | . 1 . . . . 1 2 . . . . . 1 . . . . . . . . . . . . . . . . . . Assimilate 1 | . . . 1 . . . . . . . . . . . . . . . . . . . . . . . . . . . . Botnet 13 | . 3 . 2 . . . 5 . . . . . 3 . . . . . . . . . . . . . . . . . . Disrupt 1 | . . . 1 . . . . . . . . . . . . . . . . . . . . . . . . . . . . Operators 3 | . . . 1 . . . 2 . . . . . . . . . . . . . . . . . . . . . . . . Skim 17 | . 6 . 5 . . . 6 . . . . . . . . . . . . . . . . . . . . . . . . Fabricators 7 | . . . . . . . . . . . . . . . . . . 2 . . . . 4 . 1 . . . . . . Prioritize 1 | . . . . . . . . . . . . . . . . . . 1 . . . . . . . . . . . . . Haulers 4 | . . . . . . . . . . . . . . . . . . 1 . . . . 2 . 1 . . . . . . Recompile 2 | . . . . . . . . . . . . . . . . . . . . . . . 2 . . . . . . . . Repair Stations . | . . . . . . . . . . . . . . . . . . . . . . . . . . . . . . . . Recycling Units 9 | . 2 . 1 . . . 2 1 . . . . 1 . . . . 1 . . . . 1 . . . . . . . . Recyclers 4 | . . . . . . . . 1 . . . . 1 . . . . 1 . . . . 1 . . . . . . . . Tunnel 5 | . 2 . 1 . . . 2 . . . . . . . . . . . . . . . . . . . . . . . . Scanalyzers . | . . . . . . . . . . . . . . . . . . . . . . . . . . . . . . . . Garrison Access 3 | . . . . . . . 1 1 . . . . . . . . . . . . . . . . . . . . 1 . . Reprogram 3 | . . . . . . . 1 1 . . . . . . . . . . . . . . . . . . . . 1 . . Data Cores Recovered 2 | . . . 1 . . . . . . . . . . . . . . 1 . . . . . . . . . . . . . Used . | . . . . . . . . . . . . . . . . . . . . . . . . . . . . . . . . Hacking Detections 71 | . 6 2 11 . . 1 8 10 . . . . 8 . 1 . . 7 . . . . 7 . 1 4 1 . 1 3 . Full Trace Events 9 | . . 1 1 . . . . . . . . . . . . . . . . . . . 5 . . . . . 1 1 . Feedback Events 3 | . . . 1 . . . . . . . . . . . . . . . . . . . 2 . . . . . . . . Corruption 3 | . . . 1 . . . . . . . . . . . . . . . . . . . 2 . . . . . . . . Feedback Blocked . | . . . . . . . . . . . . . . . . . . . . . . . . . . . . . . . . Robot Schematics Acquired 11 | . . . . . . . . . . . 3 . . . . . . . . . . . 4 . . 4 . . . . . Robots Built . | . . . . . . . . . . . . . . . . . . . . . . . . . . . . . . . . Authchips . | . . . . . . . . . . . . . . . . . . . . . . . . . . . . . . . . Time . | . . . . . . . . . . . . . . . . . . . . . . . . . . . . . . . . Total Robot Build Rating . | . . . . . . . . . . . . . . . . . . . . . . . . . . . . . . . . Part Schematics Acquired 56 | . . . 1 . . . . . . . 12 . 1 . . . . 11 . . 4 . 12 . . . . . 15 . . Parts Built 7 | . . . . . . . . . . . . . . . . . . 6 . . . . 1 . . . . . . . . Authchips 6 | . . . . . . . . . . . . . . . . . . 4 . . . . 1 . 1 . . . . . . Time 590 | . . . . . . . . . . . . . . . . . . 319 . . . . 84 . 187 . . . . . . Total Part Build Rating 41 | . . . . . . . . . . . . . . . . . . 35 . . . . 6 . . . . . . . . Part Studies Acquired 5 | . . . 3 . . . . 1 . . . . . . . . . . . . . . 1 . . . . . . . . Parts Repaired 3 | . . . . . . . . . . . . . . . . . . 3 . . . . . . . . . . . . . Time 210 | . . . . . . . . . . . . . . . . . . 210 . . . . . . . . . . . . . Parts Recycled . | . . . . . . . . . . . . . . . . . . . . . . . . . . . . . . . . Recycled Matter . | . . . . . . . . . . . . . . . . . . . . . . . . . . . . . . . . Retrieved Matter . | . . . . . . . . . . . . . . . . . . . . . . . . . . . . . . . . Retrieved Components 37 | . . . . . . . . 22 . . . . 1 . . . . 3 . . . . 4 . . 7 . . . . . Parts Scanalyzed 2 | . . . 1 . . . . . . . . . . . . . . . . . . . 1 . . . . . . . . Part Schematics Acquired 2 | . . . 1 . . . . . . . . . . . . . . . . . . . 1 . . . . . . . . Parts Damaged . | . . . . . . . . . . . . . . . . . . . . . . . . . . . . . . . . Bothacking | -11 -10 -10 -9 -9 -9 -8 -8 -7 -7 -7 -7 -6 -6 -6 -6 -6 -5 -5 -5 -5 -5 -4 -4 -4 -4 -4 -4 -4 -4 -3 -2 ------------ Run | Yrd Mat Min Mat Min Exi Min Mat Fac Low Low Dat Pro Fac Low Low Zio Pro Fac Upp Upp Zhi Pro Fac Was Fac Ext Cet Arc Hub Res Res Used RIF Installer . | . . . . . . . . . . . . . . . . . . . . . . . . . . . . . . . . Robots Hacked 1 | . . . . . . . . . . . . . 1 . . . . . . . . . . . . . . . . . . Non-combat 1 | . . . . . . . . . . . . . 1 . . . . . . . . . . . . . . . . . . Combat . | . . . . . . . . . . . . . . . . . . . . . . . . . . . . . . . . Robot Hacks Applied 1 | . . . . . . . . . . . . . 1 . . . . . . . . . . . . . . . . . . find_chute 1 | . . . . . . . . . . . . . 1 . . . . . . . . . . . . . . . . . . Relay Couplers Released 3 | . . . . . . . . . . . . . . . . . . . . . . . . . 1 . . . 2 . . Machine Destruction 3 | . . . . . . . . . . . . . . . . . . . . . . . . . 1 . . . 2 . . Fabnet Peak Effective % . | . . . . . . . . . . . . . . . . . . . . . . . . . . . . . . . . Robots Rewired 14 | . . . . . . . . . . . 1 . . . . . . . . . . . . . . 13 . . . . . Allies Hacked 12 | . . . . . . . . . . . . . . . . . . 12 . . . . . . . . . . . . . Hacks Repelled 1 | . . . . . . . . . . . . . . . . . . 1 . . . . . . . . . . . . . Allies | -11 -10 -10 -9 -9 -9 -8 -8 -7 -7 -7 -7 -6 -6 -6 -6 -6 -5 -5 -5 -5 -5 -4 -4 -4 -4 -4 -4 -4 -4 -3 -2 -------- Run | Yrd Mat Min Mat Min Exi Min Mat Fac Low Low Dat Pro Fac Low Low Zio Pro Fac Upp Upp Zhi Pro Fac Was Fac Ext Cet Arc Hub Res Res Total Allies 83 | . . 3 . . . . 2 1 . . 1 . . . . 4 . 18 . . . . 5 19 . 24 . . 4 2 . Largest Group 21 | . . 3 3 . . . 2 2 . . 1 . . . . 4 4 5 . . . . 5 19 18 21 21 8 9 1 . Highest-Rated Group 863 | . . 40 40 . . . 80 80 . . 96 . . . . 159 159 413 . . . . 346 684 634 863 863 349 390 81 . Highest-Rated Ally 165 | . . 16 16 . . . 40 40 . . 96 . . . . 42 42 165 . . . . 96 50 50 159 51 51 51 81 . Zionite Dispatches 6 | . . . . . . . . . . . . . . . . . . 2 . . . . 3 . . . . . . 1 . Light 2 | . . . . . . . . . . . . . . . . . . 1 . . . . 1 . . . . . . . . Hacker 1 | . . . . . . . . . . . . . . . . . . . . . . . . . . . . . . 1 . Hero 1 | . . . . . . . . . . . . . . . . . . 1 . . . . . . . . . . . . . Defense Resupply 1 | . . . . . . . . . . . . . . . . . . . . . . . 1 . . . . . . . . Hover Resupply 1 | . . . . . . . . . . . . . . . . . . . . . . . 1 . . . . . . . . Total Orders 7 | . . . . . . . . . . . 1 . . . . . . . . . . . 3 . . . . 2 1 . . STAY 3 | . . . . . . . . . . . . . . . . . . . . . . . 1 . . . . 1 1 . . ROAM 1 | . . . . . . . . . . . 1 . . . . . . . . . . . . . . . . . . . . FOLLOW 1 | . . . . . . . . . . . . . . . . . . . . . . . . . . . . 1 . . . DROP 2 | . . . . . . . . . . . . . . . . . . . . . . . 2 . . . . . . . . Ally Attacks 651 | . . . 6 . . . 36 21 . . 16 . . . . . 9 161 . . . . 51 . 120 102 54 19 47 9 . Total Damage 15244 | . . . 70 . . . 892 250 . . 272 . . . . . 281 3270 . . . . 2030 . 2391 2446 1605 480 828 429 . Kills 97 | . . . 1 . . . 13 3 . . 1 . . . . . 1 24 . . . . 10 . 10 19 7 3 4 1 . Allies Corrupted 2 | . . . . . . . . . . . . . . . . . . . . . . . . . 2 . . . . . . Allies Melted 2 | . . . . . . . . . . . . . . . . . . . . . . . . . 1 1 . . . . . Intel | -11 -10 -10 -9 -9 -9 -8 -8 -7 -7 -7 -7 -6 -6 -6 -6 -6 -5 -5 -5 -5 -5 -4 -4 -4 -4 -4 -4 -4 -4 -3 -2 ------- Run | Yrd Mat Min Mat Min Exi Min Mat Fac Low Low Dat Pro Fac Low Low Zio Pro Fac Upp Upp Zhi Pro Fac Was Fac Ext Cet Arc Hub Res Res Active Infowar (turns) 22979 | 32 268 479 . . . . . 1500 810 1185 12 1585 1318 1263 1633 2417 756 2109 839 651 366 634 1248 401 589 1234 261 613 233 543 . Optics 17192 | . . . . . . . . . . . . 637 1318 1263 1633 2417 756 2109 839 651 366 634 1248 401 589 1234 261 613 223 . . Sensors 15574 | . . . . . . . . 363 808 1185 12 948 852 1065 1508 1890 682 1741 791 586 357 632 879 401 359 15 . . . 500 . Terrain 2297 | . . . . . . . . . . . . . . . . . . 984 . . . . 715 . 58 . . . . 540 . Traps 2 | . . . . . . . . . 2 . . . . . . . . . . . . . . . . . . . . . . Seismic 782 | 32 268 479 . . . . . . . . . . 2 . . . . . . . . . 1 . . . . . . . . T.N.C. 1509 | . . . . . . . . 1500 . . . . . . . . . 9 . . . . . . . . . . . . . Machine Analysis 236 | . . . . . . . . . . . . . . . . . . . . . . . . . 236 . . . . . . Jamming 786 | . . . . . . . . . . . . . . . . . . . . . . . . . 2 570 . . 166 48 . ECM 189 | . . . . . . . . . . . . . . . . . . . . . . . 57 . 132 . . . . . . Robot Analysis Total 8 | . 1 1 2 . . . . . . . . . . . . . . . . . 4 . . . . . . . . . . Derelict Logs Recovered 21 | . . 2 . 2 . . . . 2 2 . 1 . 2 3 . 2 . 1 2 . 2 . . . . . . . . . Drone Launches . | . . . . . . . . . . . . . . . . . . . . . . . . . . . . . . . . Drone Recoveries . | . . . . . . . . . . . . . . . . . . . . . . . . . . . . . . . . Zionite Intel Received 28 | . . . . . . . . . . . . . . . . . . 8 . . . . 7 . 1 7 . . 5 . . Main Access 1 | . . . . . . . . . . . . . . . . . . . . . . . 1 . . . . . . . . Emergency Access 4 | . . . . . . . . . . . . . . . . . . 1 . . . . 1 . . 1 . . 1 . . Guard Positions 2 | . . . . . . . . . . . . . . . . . . . . . . . 1 . . 1 . . . . . Component Stockpiles 2 | . . . . . . . . . . . . . . . . . . 1 . . . . . . . 1 . . . . . Prototype Stockpiles 2 | . . . . . . . . . . . . . . . . . . 1 . . . . 1 . . . . . . . . Component Schematics 1 | . . . . . . . . . . . . . . . . . . . . . . . . . . . . . 1 . . Prototype Schematics 2 | . . . . . . . . . . . . . . . . . . 1 . . . . 1 . . . . . . . . Unaware Schematics 2 | . . . . . . . . . . . . . . . . . . . . . . . 1 . . 1 . . . . . Unaware Analyses 2 | . . . . . . . . . . . . . . . . . . . . . . . 1 . . 1 . . . . . Trap Installations 2 | . . . . . . . . . . . . . . . . . . 1 . . . . . . . 1 . . . . . Active Terminals 2 | . . . . . . . . . . . . . . . . . . . . . . . . . 1 . . . 1 . . Active Garrisons 2 | . . . . . . . . . . . . . . . . . . 1 . . . . . . . . . . 1 . . Depthwide Sectors/0 1 | . . . . . . . . . . . . . . . . . . 1 . . . . . . . . . . . . . Depthwide Sectors/-1 3 | . . . . . . . . . . . . . . . . . . 1 . . . . . . . 1 . . 1 . . Exploration | -11 -10 -10 -9 -9 -9 -8 -8 -7 -7 -7 -7 -6 -6 -6 -6 -6 -5 -5 -5 -5 -5 -4 -4 -4 -4 -4 -4 -4 -4 -3 -2 ------------- Run | Yrd Mat Min Mat Min Exi Min Mat Fac Low Low Dat Pro Fac Low Low Zio Pro Fac Upp Upp Zhi Pro Fac Was Fac Ext Cet Arc Hub Res Res Turns Passed 32984 | 170 1386 1048 2009 973 389 1278 1457 1684 1037 1483 472 1737 1318 1278 1633 2417 756 2109 839 651 366 634 1248 401 589 1234 261 613 635 869 10 Spaces Moved 21340 | 68 600 446 1112 533 221 661 952 1143 754 763 144 824 799 825 1003 1465 512 1219 558 483 262 489 1598 375 745 958 160 430 568 666 4 Core 15 | 6 3 . . . . . . . . . . . . . . . . . . . . . . . . . . . . 6 . Treads 300 | 62 207 . . . . . . . . . . . . . . . . . . . . . . . . . . . . 27 4 Legs 15279 | . 390 446 1112 533 221 661 952 1143 754 763 144 518 799 825 1003 1465 512 1219 558 483 262 489 27 . . . . . . . . Wheels 306 | . . . . . . . . . . . . 306 . . . . . . . . . . . . . . . . . . . Hover 5440 | . . . . . . . . . . . . . . . . . . . . . . . 1571 375 745 958 160 430 568 633 . Flight . | . . . . . . . . . . . . . . . . . . . . . . . . . . . . . . . . Fastest Speed 32 | 50 120 120 105 175 175 175 105 105 120 186 190 115 126 124 124 125 128 122 122 122 122 123 52 56 56 56 56 45 38 32 240 Average Speed 117 | 150 134 120 150 175 175 175 121 112 126 187 193 166 126 125 124 126 128 125 122 122 122 123 55 56 57 61 97 97 48 82 240 Slowest Speed 900 | 160 250 120 190 175 175 245 315 120 186 190 213 213 127 126 209 128 128 128 122 122 123 123 123 56 119 119 119 122 115 900 240 Overloaded Moves . | . . . . . . . . . . . . . . . . . . . . . . . . . . . . . . . . Propulsion Burnouts . | . . . . . . . . . . . . . . . . . . . . . . . . . . . . . . . . Robots Hopped 1 | . . . . . . . . . . . . . . . . . . . . . . . . . . . . . . 1 . Potential Cave-ins 2 | . . . . . . . . . . . . . 2 . . . . . . . . . . . . . . . . . . Cave-ins Triggered . | . . . . . . . . . . . . . . . . . . . . . . . . . . . . . . . . Exploration Rate (%) 66 | 5 88 97 90 89 60 96 76 34 80 82 80 66 28 88 89 91 70 33 67 64 61 66 44 93 19 89 60 91 53 19 . Regions Visited 31 Branch Regions 20 Pre-discovered Areas 44 | . 3 1 2 1 1 . 3 . 1 . 1 1 . . 2 2 . 14 1 . 3 . . . . 4 . . 4 . . Known Exits Taken 22 | . . 1 1 . . 1 1 1 1 1 1 1 1 1 1 1 1 1 1 1 1 1 . . 1 . . . 1 1 . Unknown Exits Taken 7 | 1 1 . . 1 1 . . . . . . . . . . . . . . . . . . . . 1 1 1 . . . Scrap Searched 35 | . . 1 . 1 . 2 . . 4 3 . 4 . 2 9 4 2 . . . . 3 . . . . . . . . . Spaces Dug 540 | . . . . . . . 17 . . 32 . 37 14 30 67 . 54 61 89 . . 4 102 1 11 3 . . 4 14 . Terrain Destroyed 2382 | . 11 . 35 . . . 116 65 4 32 . 52 74 214 161 . 118 209 275 83 . 10 292 38 72 67 27 43 213 171 . Melee 10 | . . . . . . . . . . . . . . . . . . . . . . . . . . . . . 4 6 . Projectile 499 | . . . . . . . 1 . . . . 15 22 4 52 . 2 55 36 6 . 10 45 38 21 67 27 43 37 18 . AOE 1871 | . 11 . 35 . . . 115 65 4 32 . 37 52 210 109 . 116 154 239 77 . . 247 . 51 . . . 172 145 . Terrain Rammed . | . . . . . . . . . . . . . . . . . . . . . . . . . . . . . . . . Walls Destroyed . | . . . . . . . . . . . . . . . . . . . . . . . . . . . . . . . . Machines Disabled . | . . . . . . . . . . . . . . . . . . . . . . . . . . . . . . . . Actions | -11 -10 -10 -9 -9 -9 -8 -8 -7 -7 -7 -7 -6 -6 -6 -6 -6 -5 -5 -5 -5 -5 -4 -4 -4 -4 -4 -4 -4 -4 -3 -2 --------- Run | Yrd Mat Min Mat Min Exi Min Mat Fac Low Low Dat Pro Fac Low Low Zio Pro Fac Upp Upp Zhi Pro Fac Was Fac Ext Cet Arc Hub Res Res Total 26888 | 94 1052 936 1311 560 226 709 1140 1402 809 795 269 1066 990 951 1309 2026 582 1600 648 525 301 502 1856 482 839 1510 234 550 763 847 4 Wait 2845 | . 328 469 52 9 . 3 24 106 8 4 61 79 55 35 215 505 33 147 42 26 . 2 81 56 14 301 46 61 44 39 . Move 21309 | 67 599 445 1111 532 220 660 951 1142 753 762 143 823 798 824 1002 1464 511 1218 557 482 261 488 1598 374 744 957 159 429 568 663 4 Hop 1 | . . . . . . . . . . . . . . . . . . . . . . . . . . . . . . 1 . Pick Up 209 | 1 11 4 23 6 . 2 19 13 9 . 4 18 11 5 1 14 . 15 . . 8 . 18 2 5 9 2 2 4 3 . Fast Attach 101 | 7 11 . 3 . . 1 5 1 2 1 . 7 8 4 . 3 1 10 1 . 4 . 4 . 3 1 2 5 7 10 . Attach 89 | . 2 . 8 . 1 2 5 3 . 2 6 3 4 2 2 6 . 7 . . 2 . 12 . 2 2 . 1 6 11 . Detach 34 | . 1 . . . 3 . 2 . 1 1 1 . 2 . . 7 1 5 . . . . 2 . 1 2 . 1 2 2 . Swap 528 | . 5 2 15 1 . 1 27 32 17 14 5 21 36 19 26 11 23 76 17 7 9 3 45 6 24 17 4 8 29 28 . Drop 243 | . 4 4 17 4 2 . 27 21 5 . 2 21 17 5 1 16 2 18 1 . 12 . 22 1 5 9 4 7 12 4 . Fire 1178 | 19 77 12 71 8 . 33 72 80 14 11 45 44 53 57 59 . 9 97 30 10 . 9 61 41 33 44 17 36 72 64 . Melee 87 | . . . . . . . . . . . . 42 . . . . 2 2 . . 5 . . 2 8 2 . . 17 7 . Ram 4 | . . . . . . . . . . . . . . . . . . . . . . . . . . . . . 2 2 . Kick 50 | . 10 . 11 . . 6 8 4 . . . . 6 . . . . 5 . . . . . . . . . . . . . Crush 4 | . 4 . . . . . . . . . . . . . . . . . . . . . . . . . . . . . . Escape Stasis 66 | . . . . . . . . . . . . 8 . . . . . . . . . . 13 . . 32 . . . 13 . Rewire 135 | . . . . . . 1 . . . . . . . . . . . . . . . . . . . 134 . . . . . Trap 5 | . . . . . . . . . . . 2 . . . 3 . . . . . . . . . . . . . . . . Miscellaneous . | . . . . . . . . . . . . . . . . . . . . . . . . . . . . . . . . Route ------- -11/Scrapyard -10/Materials (discovered 6 exits: *Mat x3 / *Min x2 / Sub) -10/Mines (discovered 3 exits: *Mat x2 / *Sub) -9/Materials (discovered 5 exits: *Mat x3 / *Min x2) -9/Mines (discovered 3 exits: *Mat x2 / *Exi) -9/Exiles -8/Mines (discovered 2 exits: *Mat x2) -8/Materials (discovered 4 exits: *Fac x3 / Gar) -7/Factory (discovered 5 exits: Fac x4 / *Low) -7/Lower Caves -7/Lower Caves (discovered 2 exits: *Fac / *Dat) -7/Data Miner -6/Proximity Caves -6/Factory (discovered 2 exits: *Low x2) -6/Lower Caves -6/Lower Caves (discovered 2 exits: *Fac / *Zio) -6/Zion -5/Proximity Caves -5/Factory (discovered 2 exits: Fac / *Upp) -5/Upper Caves -5/Upper Caves (discovered 2 exits: *Fac / *Zhi) -5/Zhirov -4/Proximity Caves -4/Factory (discovered 6 exits: Res x4 / Upp / *Ext) -4/Waste -4/Factory -4/Extension (discovered 2 exits: *Res / *Cet) -4/Cetus (discovered 2 exits: *Res / [*Arc]) -4/Archives (discovered 3 exits: *Res / *Hub x2) -4/Hub_04(d) (discovered 2 exits: *Res x2) -3/Research -2/Research History --------- Turn | Location | Event 42 | -11/Scrapyard | Discovered new exit (range 15) 171 | -11/Scrapyard | Entered Materials 305 | -10/Materials | Build established: Mutant 379 | -10/Materials | Discovered new exit (range 16) 663 | -10/Materials | Lost 6 parts (1p2n1u2w) 724 | -10/Materials | Discovered new exit (range 9) 772 | -10/Materials | Discovered new exit (range 6) 936 | -10/Materials | Discovered new exit (range 15) 950 | -10/Materials | Build established: Scavenger-Mutant 987 | -10/Materials | Core integrity fell below 50% 1251 | -10/Materials | Loaded intel: 8 terminal locations 1352 | -10/Materials | Identified exit to Materials 1390 | -10/Materials | Identified exit to Subcaves 1390 | -10/Materials | Learned location of 1 exit from Materials 1417 | -10/Materials | Learned 2 Mines zone layouts 1557 | -10/Materials | Entered Mines 1583 | -10/Mines | Learned Materials emergency access door positions 1584 | -10/Mines | Assembled infested the area 2119 | -10/Mines | Assisted by bots powering up and referring to "LRC-V3" 2605 | -10/Mines | Entered Materials 2605 | -9/Materials | Accompanied by 3 allies 2605 | -9/Materials | Evolved 2 slots: Propulsion x1, Utility x1 2606 | -9/Materials | Identified exit to Mines 2607 | -9/Materials | Identified exit to Materials 2785 | -9/Materials | Lost 3 allies 2803 | -9/Materials | Lost 3 parts (2n1w) 3122 | -9/Materials | Discovered exit to Materials (range 16) 3229 | -9/Materials | Build established: Mutant 3419 | -9/Materials | Learned 2 Storage zone layouts 3472 | -9/Materials | Central database locked down 3606 | -9/Materials | Learned Storage emergency access door positions 3726 | -9/Materials | Learned location of 3 exits from Materials 3779 | -9/Materials | Learned location of Zion (-6) 4614 | -9/Materials | Entered Mines 4615 | -9/Mines | Learned location of Storage (-7) 4751 | -9/Mines | Deemed a non-threat by the Exiles lab entrance 4753 | -9/Mines | Discovered new exit (range 5) 4826 | -9/Mines | Received a Rocket Launcher from a helpful Derelict 4853 | -9/Mines | Discovered exit to Materials (range 7) 4945 | -9/Mines | Discovered exit to Materials (range 14) 5176 | -9/Mines | Learned Materials emergency access door positions 5318 | -9/Mines | A weapon hastily lodged in a ceiling crevice suddenly fell to the ground 5587 | -9/Mines | Entered Exiles 5629 | -9/Exiles | Met 8R-AWN 5663 | -9/Exiles | Met EX-HEX 5712 | -9/Exiles | Met EX-BIN 5731 | -9/Exiles | Met EX-DEC 5958 | -9/Exiles | Discovered new exit (range 12) 5976 | -9/Exiles | Entered Mines 6809 | -8/Mines | Found a Scrap Suit stashed away for nefarious purposes 7254 | -8/Mines | Entered Materials 7254 | -8/Materials | Evolved 2 slots: Propulsion x1, Utility x1 7255 | -8/Materials | Identified exit to Factory 7402 | -8/Materials | Lost 5 parts (2n2u1w) 7741 | -8/Materials | Build established: Scavenger-Mutant 7802 | -8/Materials | Identified exit to Garrison 7945 | -8/Materials | Garrison activated, responded to threat 8244 | -8/Materials | Learned Factory emergency access door positions 8322 | -8/Materials | Learned Storage trap positions 8443 | -8/Materials | Learned location of Recycling (-7) 8486 | -8/Materials | Learned location of 2 exits from Factory 8520 | -8/Materials | Learned Factory trap positions 8543 | -8/Materials | Learned Storage emergency access door positions 8577 | -8/Materials | Learned 4 Recycling zone layouts 8622 | -8/Materials | Learned 8 Factory zone layouts 8679 | -8/Materials | Learned Storage garrison access intel 8711 | -8/Materials | Entered Factory 8711 | -7/Factory | Accompanied by 2 allies 8711 | -7/Factory | Evolved 2 slots: Utility x2 8712 | -7/Factory | Identified exit to Factory 8713 | -7/Factory | Identified exit to Lower Caves 8715 | -7/Factory | Loaded intel: 110 trap records 8745 | -7/Factory | Build established: Mutant 8832 | -7/Factory | Garrison activated, responded to threat 9023 | -7/Factory | Central database locked down 9051 | -7/Factory | Build established: Scavenger-Mutant 9323 | -7/Factory | Garrison activated, responded to threat 9641 | -7/Factory | Build established: Scavenger-Skirmisher 9968 | -7/Factory | Build established: Scavenger-Mutant 10261 | -7/Factory | Garrison activated, responded to threat 10262 | -7/Factory | Cargo convoy interrupted 10301 | -7/Factory | Destroyed 11 combat bots 10395 | -7/Factory | Entered Lower Caves 10557 | -7/Lower Caves | Build established: Mutant 10771 | -7/Lower Caves | Identified exit to Lower Caves 10812 | -7/Lower Caves | Found DCF Scrap (14 items) 11432 | -7/Lower Caves | Entered another Lower Caves area 11446 | -7/Lower Caves | Learned 8 Factory zone layouts 11560 | -7/Lower Caves | Discovered exit to Factory (range 9) 12007 | -7/Lower Caves | Learned Factory terminal intel 12282 | -7/Lower Caves | Found Alien Artifact 12282 | -7/Lower Caves | Identified Core Expander 12282 | -7/Lower Caves | Installed Core Expander, added new Power slot 12437 | -7/Lower Caves | Discovered new exit (range 9) 12664 | -7/Lower Caves | Identified exit to Data Miner 12915 | -7/Lower Caves | Entered Data Miner 12915 | -7/Data Miner | Discovered new exit (range 6) 12952 | -7/Data Miner | Met Data Miner 12984 | -7/Data Miner | Learned location of Section 7 (-2) 12984 | -7/Data Miner | Acquired the access code to Warlord's prototype stash 13014 | -7/Data Miner | Received God Mode back door access code from Data Miner 13030 | -7/Data Miner | Data Conduit disabled 13362 | -7/Data Miner | Lost 3 parts (2u1w) 13383 | -7/Data Miner | Identified exit to Proximity Caves 13387 | -7/Data Miner | Entered Proximity Caves 13390 | -6/Proximity Caves | Spotter reported a threat 13390 | -6/Proximity Caves | Spotter reported a threat 14519 | -6/Proximity Caves | Discovered exit to Factory (range 20) 14539 | -6/Proximity Caves | Build established: Derelict-Mutant 14665 | -6/Proximity Caves | Found Prototype Launcher 14665 | -6/Proximity Caves | Identified Gui. Missile Launcher 15071 | -6/Proximity Caves | System corruption reached 10% 15124 | -6/Proximity Caves | Entered Factory 15124 | -6/Factory | Evolved 2 slots: Propulsion x2 15125 | -6/Factory | Identified exit to Lower Caves 15126 | -6/Factory | Loaded intel: 25 terminal locations 15146 | -6/Factory | Build established: Scavenger-Mutant 15536 | -6/Factory | Garrison activated, responded to threat 16012 | -6/Factory | Build established: Scavenger-Skirmisher 16230 | -6/Factory | Cargo convoy interrupted 16271 | -6/Factory | Lost 3 parts (1p1n1u) 16274 | -6/Factory | Destroyed 7 combat bots 16371 | -6/Factory | Spotted B-75 Beast 16442 | -6/Factory | Entered Lower Caves 16653 | -6/Lower Caves | Learned Factory terminal intel 16974 | -6/Lower Caves | Attracted the attention of an 0b10 outpost 17008 | -6/Lower Caves | Destroyed 7 combat bots 17488 | -6/Lower Caves | Encountered a Warlord checkpoint 17522 | -6/Lower Caves | Learned Factory emergency access door positions 17628 | -6/Lower Caves | Discovered new exit (range 8) 17638 | -6/Lower Caves | Identified exit to Lower Caves 17720 | -6/Lower Caves | Entered another Lower Caves area 17826 | -6/Lower Caves | Discovered new exit (range 6) 17831 | -6/Lower Caves | Identified exit to Factory 18313 | -6/Lower Caves | Spotted B-75 Beast 19204 | -6/Lower Caves | Discovered new exit (range 11) 19205 | -6/Lower Caves | Encountered a Warlord checkpoint 19215 | -6/Lower Caves | Identified exit to Zion 19353 | -6/Lower Caves | Entered Zion 19408 | -6/Zion | System corruption cleaned by Quarantine Array 19504 | -6/Zion | Discovered new exit (range 21) 19512 | -6/Zion | Found Unknown Piercing Weapon 19512 | -6/Zion | Identified CR-A16's Pointy Stick 19818 | -6/Zion | Build established: Scavenger-Assassin 19858 | -6/Zion | Acquired unknown access codes intercepted by a Zionite 20128 | -6/Zion | Found Prototype Device 20128 | -6/Zion | Identified Mobile Refinery Mk. CCLXVII 20492 | -6/Zion | Found Prototype Device 20544 | -6/Zion | Identified Bomb Factory No. 2 20863 | -6/Zion | Build established: Scavenger-Mutant 21325 | -6/Zion | Build established: Scavenger-Assassin 21401 | -6/Zion | Met Imprinter 21420 | -6/Zion | Imprinted 21422 | -6/Zion | Declared Zion's savior 21673 | -6/Zion | Identified exit to Proximity Caves 21770 | -6/Zion | Entered Proximity Caves 21770 | -5/Proximity Caves | Accompanied by 4 allies 22022 | -5/Proximity Caves | Learned location of 1 exit from Factory 22214 | -5/Proximity Caves | Discovered exit to Factory (range 19) 22526 | -5/Proximity Caves | Entered Factory 22526 | -5/Factory | Accompanied by 3 allies 22526 | -5/Factory | Evolved 2 slots: Propulsion x1, Utility x1 22527 | -5/Factory | Identified exit to Factory 22529 | -5/Factory | Loaded intel: 26 terminal locations 22627 | -5/Factory | Build established: Scavenger-Skirmisher 22859 | -5/Factory | Repaired Enh. Flexi-carbon Leg? 22961 | -5/Factory | Retrieved Zion intel report: Trap Installations 23074 | -5/Factory | Repaired Lgt. Armored Exoskeleton 23202 | -5/Factory | Retrieved Zion intel report: Prototype Stockpiles 23203 | -5/Factory | Zion Light squad teleported in 23251 | -5/Factory | Lost 3 allies 23261 | -5/Factory | Found Prototype Protection 23261 | -5/Factory | Identified Zio. Weapon Casing 23476 | -5/Factory | Repaired Neutron Missile Launcher? 23481 | -5/Factory | Retrieved Zion intel report: Emergency Access 23497 | -5/Factory | Retrieved Zion intel report: Active Garrisons 23678 | -5/Factory | Retrieved Zion intel report: Depthwide Sectors/-5 23710 | -5/Factory | Discovered new exit (range 17) 23714 | -5/Factory | Retrieved Zion intel report: Component Stockpiles 23732 | -5/Factory | Retrieved Zion intel report: Depthwide Sectors/-4 23749 | -5/Factory | Retrieved Zion intel report: Prototype Schematics 23751 | -5/Factory | Zion hero teleported in (ME-RLN) 23759 | -5/Factory | Terminal network hard line cut 23770 | -5/Factory | ME-RLN assimilated hostile G-50 Soldier 23782 | -5/Factory | ME-RLN assimilated hostile S-27 Virus 23815 | -5/Factory | Build established: Derelict-Skirmisher 23921 | -5/Factory | Found Prototype Launcher 23921 | -5/Factory | Identified Mni. Smartbomb Launcher 23941 | -5/Factory | Fabricated Cmb. Gravmag System? 23944 | -5/Factory | ME-RLN assimilated hostile G-50 Soldier 24065 | -5/Factory | Spotted B-75 Beast 24072 | -5/Factory | ME-RLN assimilated hostile B-75 Beast 24116 | -5/Factory | Found Prototype Launcher 24116 | -5/Factory | Identified Tesla Bomb Launcher 24133 | -5/Factory | Fabricated Cmb. Gravmag System (x2) 24180 | -5/Factory | Build established: Skirmisher 24226 | -5/Factory | Fabricated Scatter Rocket Array (x1) 24247 | -5/Factory | Revealed the true nature of CR-A16's Pointy Stick 24256 | -5/Factory | ME-RLN assimilated hostile H-71 Marshal 24323 | -5/Factory | Fabricated Enh. Coil Gun? 24334 | -5/Factory | ME-RLN assimilated hostile G-50 Soldier 24352 | -5/Factory | Found Prototype Launcher 24352 | -5/Factory | Identified Rocket Array 24358 | -5/Factory | ME-RLN assimilated hostile G-50 Soldier 24370 | -5/Factory | ME-RLN assimilated hostile G-50 Soldier 24383 | -5/Factory | ME-RLN assimilated hostile G-50 Soldier 24611 | -5/Factory | Identified exit to Upper Caves 24626 | -5/Factory | First assault squad dispatched 24635 | -5/Factory | Entered Upper Caves 24687 | -5/Upper Caves | Attracted the attention of an 0b10 checkpoint 25309 | -5/Upper Caves | Spotted B-75 Beast 25427 | -5/Upper Caves | Discovered new exit (range 5) 25432 | -5/Upper Caves | Identified exit to Upper Caves 25474 | -5/Upper Caves | Entered another Upper Caves area 25561 | -5/Upper Caves | Discovered exit to Factory (range 15) 25594 | -5/Upper Caves | Attracted the attention of an 0b10 checkpoint 25670 | -5/Upper Caves | Learned Factory security intel 25896 | -5/Upper Caves | Discovered new exit (range 17) 25994 | -5/Upper Caves | Identified exit to Zhirov 26125 | -5/Upper Caves | Entered Zhirov 26125 | -5/Zhirov | Discovered new exit (range 3) 26148 | -5/Zhirov | Met Zhirov 26175 | -5/Zhirov | Learned location of Quarantine (-3) 26175 | -5/Zhirov | Learned location of Command (-1) 26183 | -5/Zhirov | Zhirov requested help retrieving the SGEMP Prototype 26201 | -5/Zhirov | Found Alien Artifact 26201 | -5/Zhirov | Identified Integrated Reactor 26201 | -5/Zhirov | Installed Integrated Reactor, increased core energy generation (+10) 26394 | -5/Zhirov | Found Alien Artifact 26486 | -5/Zhirov | Identified exit to Proximity Caves 26491 | -5/Zhirov | Entered Proximity Caves 26692 | -4/Proximity Caves | Learned Research non-interactive machine intel 26973 | -4/Proximity Caves | Discovered exit to Factory (range 6) 27028 | -4/Proximity Caves | Learned 4 Research zone layouts 27125 | -4/Proximity Caves | Entered Factory 27125 | -4/Factory | Evolved 2 slots: Propulsion x1, Utility x1 27126 | -4/Factory | Identified exit to Upper Caves 27126 | -4/Factory | Identified exit to Extension 27182 | -4/Factory | Discovered new exit (range 19) 27327 | -4/Factory | Retrieved Zion intel report: Prototype Stockpiles 27417 | -4/Factory | Retrieved Zion intel report: Unaware Schematics 27437 | -4/Factory | Retrieved Zion intel report: Emergency Access 27458 | -4/Factory | Retrieved Zion intel report: Guard Positions 27459 | -4/Factory | Zion Light squad teleported in 27461 | -4/Factory | Found Adv. Powered Armor 27464 | -4/Factory | Found Adv. Powered Armor 27490 | -4/Factory | Zion Hover Resupply teleported in 27495 | -4/Factory | Build established: Machinist-Scout 27534 | -4/Factory | Zion Defense Resupply teleported in 27558 | -4/Factory | Fabricated Enh. Coil Gun? 27581 | -4/Factory | Retrieved Zion intel report: Unaware Analyses 27919 | -4/Factory | Found Prototype Processor 27919 | -4/Factory | Identified Exp. Signal Interpreter 28125 | -4/Factory | First assault squad dispatched 28125 | -4/Factory | Retrieved Zion intel report: Prototype Schematics 28339 | -4/Factory | Retrieved Zion intel report: Main Access 28339 | -4/Factory | Identified exit to Research 28373 | -4/Factory | Sucked down chute 28373 | -4/Factory | Entered Waste 28394 | -4/Waste | Spotted C-40 Crusher 28407 | -4/Waste | Destroyed C-40 Crusher 28412 | -4/Waste | Spotted C-40 Crusher 28430 | -4/Waste | Destroyed C-40 Crusher 28443 | -4/Waste | Spotted C-40 Crusher 28470 | -4/Waste | Destroyed C-40 Crusher 28474 | -4/Waste | Spotted C-40 Crusher 28496 | -4/Waste | Destroyed C-40 Crusher 28509 | -4/Waste | Spotted C-40 Crusher 28518 | -4/Waste | Destroyed C-40 Crusher 28538 | -4/Waste | Spotted C-40 Crusher 28576 | -4/Waste | Destroyed C-40 Crusher 28599 | -4/Waste | Warlord forces began an assault 28639 | -4/Waste | Discovered new exit (range 11) 28644 | -4/Waste | Identified exit to Factory 28774 | -4/Waste | Entered Factory 28774 | -4/Factory | Accompanied by 18 allies 28798 | -4/Factory | Garrison activated, responded to threat 28833 | -4/Factory | Lost 6 allies 28992 | -4/Factory | Lost 9 allies 29010 | -4/Factory | Zion dispatch access revoked 29024 | -4/Factory | First assault squad dispatched 29138 | -4/Factory | Discovered exit to Extension (range 20) 29174 | -4/Factory | Retrieved Zion intel report: Active Terminals 29208 | -4/Factory | Found Exp. Signal Interpreter 29363 | -4/Factory | Entered Extension 29527 | -4/Extension | Retrieved Zion intel report: Trap Installations 29543 | -4/Extension | Spotted B-86 Titan 29594 | -4/Extension | Build established: Machinist-Mutant 29623 | -4/Extension | Rescued a captive Derelict 29658 | -4/Extension | Retrieved Zion intel report: Depthwide Sectors/-3 29686 | -4/Extension | Rescued A7 29722 | -4/Extension | Rescued a captive Derelict 29727 | -4/Extension | Rescued a captive Derelict 29728 | -4/Extension | Rescued a captive Derelict 29921 | -4/Extension | Spotted B-86 Titan 29928 | -4/Extension | Destroyed B-86 Titan 29936 | -4/Extension | Destroyed B-86 Titan 29962 | -4/Extension | Extracted ID and sensor layout for unrecognized location from A7's data core 29967 | -4/Extension | Found Prototype Protection 30150 | -4/Extension | Retrieved Zion intel report: Emergency Access 30156 | -4/Extension | Retrieved Zion intel report: Unaware Analyses 30180 | -4/Extension | Rescued a captive Derelict 30183 | -4/Extension | Rescued a captive Derelict 30191 | -4/Extension | Rescued a captive Derelict 30193 | -4/Extension | Rescued a captive Derelict 30247 | -4/Extension | Retrieved Zion intel report: Unaware Schematics 30280 | -4/Extension | Rescued a captive Derelict 30281 | -4/Extension | Rescued a captive Derelict 30372 | -4/Extension | Retrieved Zion intel report: Component Stockpiles 30413 | -4/Extension | Retrieved Zion intel report: Guard Positions 30500 | -4/Extension | Discovered exit to Research (range 10) 30501 | -4/Extension | Discovered new exit (range 6) 30532 | -4/Extension | Build established: Commander-Mutant 30597 | -4/Extension | Entered Cetus 30597 | -4/Cetus | Accompanied by 21 allies 30612 | -4/Cetus | Spotted Cetus Guard 30613 | -4/Cetus | Spotted Cetus Guard 30615 | -4/Cetus | Spotted Cetus Guard 30615 | -4/Cetus | Spotted Cetus Guard 30648 | -4/Cetus | Allies destroyed Cetus Guard 30648 | -4/Cetus | Allies destroyed Cetus Guard 30649 | -4/Cetus | Allies destroyed Cetus Guard 30649 | -4/Cetus | Allies destroyed Cetus Guard 30678 | -4/Cetus | Lost 8 allies 30713 | -4/Cetus | Discovered new exit (range 21) 30739 | -4/Cetus | Spotted Cetus Guard 30740 | -4/Cetus | Spotted Cetus Guard 30741 | -4/Cetus | Spotted Cetus Guard 30744 | -4/Cetus | Spotted Cetus Guard 30757 | -4/Cetus | Allies destroyed Cetus Guard 30764 | -4/Cetus | Destroyed Cetus Guard 30769 | -4/Cetus | Allies destroyed Cetus Guard 30774 | -4/Cetus | Destroyed Cetus Guard 30777 | -4/Cetus | Discovered exit to Research (range 21) 30786 | -4/Cetus | Scared off Revision 17 30799 | -4/Cetus | Lost 5 allies 30858 | -4/Cetus | Entered Archives 30858 | -4/Archives | Accompanied by 8 allies 30900 | -4/Archives | Discovered exit to Research (range 17) 30926 | -4/Archives | Discovered new exit (range 19) 30930 | -4/Archives | Discovered new exit (range 21) 31302 | -4/Archives | Build established: Scavenger-Mutant 31358 | -4/Archives | Identified Med. Regenerative Plating 31471 | -4/Archives | Entered Hub_04(d) 31471 | -4/Hub_04(d) | Accompanied by 6 allies 31476 | -4/Hub_04(d) | Spotted B-86 Titan 31480 | -4/Hub_04(d) | Destroyed B-86 Titan 31494 | -4/Hub_04(d) | Retrieved Zion intel report: Active Terminals 31495 | -4/Hub_04(d) | Retrieved Zion intel report: Component Schematics 31592 | -4/Hub_04(d) | Retrieved Zion intel report: Emergency Access 31651 | -4/Hub_04(d) | Retrieved Zion intel report: Depthwide Sectors/-3 31718 | -4/Hub_04(d) | Lost 5 allies 31756 | -4/Hub_04(d) | Retrieved Zion intel report: Active Garrisons 31818 | -4/Hub_04(d) | Garrison activated, responded to threat 31864 | -4/Hub_04(d) | Garrison activated, responded to threat 31938 | -4/Hub_04(d) | Discovered exit to Research (range 16) 31960 | -4/Hub_04(d) | Destroyed 16 combat bots 31971 | -4/Hub_04(d) | First assault squad dispatched 32072 | -4/Hub_04(d) | Discovered exit to Research (range 16) 32106 | -4/Hub_04(d) | Entered Research 32106 | -3/Research | Evolved 2 slots: Utility x1, Weapon x1 32108 | -3/Research | Loaded intel: 78 non-interactive machine locations 32135 | -3/Research | Lost 4 parts (2n1u1w) 32205 | -3/Research | Found Prototype Protection 32205 | -3/Research | Identified Centrium Heavy Armor Plating 32385 | -3/Research | Lost 4 parts (4n) 32407 | -3/Research | Zion Hacker squad teleported in 32517 | -3/Research | Lost 3 parts (3n) 32714 | -3/Research | Discovered new exit (range 13) 32750 | -3/Research | System corruption reached 10% 32846 | -3/Research | System corruption reached 30% 32856 | -3/Research | First assault squad dispatched 32875 | -3/Research | Lost 17 parts (2p7n5u3w) 32956 | -3/Research | Identified exit to Research 32975 | -3/Research | Entered another Research area 32975 | -2/Research | Evolved 2 slots: Utility x2 32985 | -2/Research | Self-destructed Last Messages --------------- 32917_ The unstable cave ceiling collapses. 32917_ U-05 Engineer lays Concrete. 32919_ The unstable cave ceiling collapses. 32919_ U-05 Engineer builds a Wall. 32921_ K-01 Serf collects debris. 32922_ System corrupted: Matter fused (-6). 32923_ K-01 Serf collects debris. 32923_ U-05 Engineer builds a Wall. 32923_ K-01 Serf collects debris. 32928_ U-05 Engineer builds a Wall. 32930_ The unstable cave ceiling collapses. 32930_ K-01 Serf collects debris. 32937_ System corrupted: Matter fused (-7). 32943_ ALERT: Security rotation in progress. 32956_ EXIT=IDENTIFIED: RESEARCH 32959_ System corrupted: Component data lost. 32974_ ,J IHF4NOT6O%R>MJSGSGBXK, PARAMETERS=UTILITY+2 LOCATION=RESEARCH GOAL=ESCAPE Map ----- +----------------------------------------------------+ | ?????????????????????????????????????????????????? | | ?????????????????????????????????????????????????? | | ?????????????????????????????????????????????????? | | ?????????????????????????????????????????????????? | | ?????????????????????????????????????????????????? | | ?????????????????????????????????????????????????? | | ?????????????????????????????????????????????????? | | ?????????????????????????????????????????????????? | | ?????????????????????????????????????????????????? | | ?????????????????????????????????????????????????? | | ??????????????????????????? ??????????????????? | | ??????????????????????????? ?????????????????? | | ??????????????????????????# ?????????????????? | | ??????????????????????????# "?????????????????? | | ??????????????????????????# """ ??????????????? | | ??????????????????????????# """???????????????? | | ??????????????????????????# ???????????????? | | ??????????????????????????# ????????????????? | | ??????????????????????????+ ?????????????????? | | ??????????????????????????# #?????????????????? | | ??????????????????????????# #?????????????????? | | ??????????????????????????# #?????????????????? | | ??????????????????????????# #?????????????????? | | ????????????????########### #?????????????????? | | ????????????????# # #?????????????????? | | ????????????????+ @/ #?????????????????? | | ????????????????# """ # #?????????????????? | | ????????????????? """" # #?????????????????? | | ????????????????? """" # #?????????????????? | | ??????????????????? """ ######?????????????????? | | ??????????????????? ???????????????????????? | | ?????????????????? ???????????????????????? | | ??????????????????########???????????????????????? | | ?????????????????????????????????????????????????? | | | | | | | | | | | | | | | | | | | | | | | | | | | | | | | | | +----------------------------------------------------+ Best States ------------- Heat Dissipation 84 Energy Generation 51 Energy Capacity 790 Matter Stores 300 Matter Capacity 300 Sight Range 22 Robot Scan Range 18 Terrain Scan Range 24 Terrain Scan Density 210 ECM Strength 1 Jamming Range 16 Additional Mass Support 16 Armor Coverage 625 Resistance: KI 30 Resistance: TH 20 Utility Shielding 90 Weapon Shielding 100 Phase Shifting 10 Evasion (%) 76 Targeting Accuracy 8 Target Analysis 8 Core Analysis 6 Recoil Reduction 2 Kinecelleration 40 Offensive Hacking 14 Defensive Hacking 14 Authchip Count 4 Trap Extractor Capacity 6 Item Schematics ----------------- Cmb. Airjet | -9/Materials | Scanalyzed Combat Drone Bay | -7/Data Miner | Free Lgt. Regenerative Plating | -7/Data Miner | Free Biomechanical Wings | -7/Data Miner | Free Thermal Defense Suite | -7/Data Miner | Free Com. Ion Cannon | -7/Data Miner | Free Cmb. Gravmag System | -7/Data Miner | Free Imp. Weapon Cycler | -7/Data Miner | Free Lrn. Proton Cannon | -7/Data Miner | Free Hvy. Shock Bomb Launcher | -7/Data Miner | Free Imp. Plasma Cutter | -7/Data Miner | Free Dispersion Rifle | -7/Data Miner | Free Nanoactuators | -7/Data Miner | Free Antimatter Reactor | -6/Factory | Hacked Adv. EM Disruption Field | -5/Factory | Z-intel Imp. Matter Compressor | -5/Factory | Z-intel Gravity Neutralizer | -5/Factory | Z-intel Prc. Matter Filter | -5/Factory | Z-intel Neutron Cannon | -5/Factory | Z-intel Imp. KE Penetrator | -5/Factory | Z-intel Enh. Coil Gun | -5/Factory | Z-intel Cld. Plasma Rifle | -5/Factory | Z-intel Enh. Armored Leg | -5/Factory | Z-intel Scatter Rocket Array | -5/Factory | Z-intel Enh. Fission Core | -5/Factory | Z-intel Assault Drone Bay | -5/Zhirov | Free Exp. Heat Sink | -5/Zhirov | Free Exp. Optical Array | -5/Zhirov | Free Imp. Arc Thrower | -5/Zhirov | Free Adv. KE Penetrator | -4/Factory | Z-intel Hvy. Wave Gun | -4/Factory | Z-intel Cld. Phase Cannon | -4/Factory | Z-intel Diametric Drive | -4/Factory | Z-intel Plasma Lance | -4/Factory | Z-intel Adv. Gravity Neutralizer | -4/Factory | Z-intel Cld. Proton Cannon | -4/Factory | Z-intel Cld. Gravmag System | -4/Factory | Z-intel Stealth Drone Bay | -4/Factory | Z-intel Mni. Fusion Reactor | -4/Factory | Z-intel Lrn. Phase Cannon | -4/Factory | Z-intel Exp. Utility Shielding | -4/Factory | Scanalyzed Hvy. Disruptor Cannon | -4/Hub_04(d) | Z-intel Lrn. Sensor Array | -4/Hub_04(d) | Z-intel System Restoration Module | -4/Hub_04(d) | Z-intel Com. Wheel | -4/Hub_04(d) | Z-intel Spear | -4/Hub_04(d) | Z-intel Quantum Capacitor | -4/Hub_04(d) | Z-intel Thunder Leg | -4/Hub_04(d) | Z-intel Phase Gun | -4/Hub_04(d) | Z-intel Great Axe | -4/Hub_04(d) | Z-intel Adv. Terrain Scanner | -4/Hub_04(d) | Z-intel Matter Filter | -4/Hub_04(d) | Z-intel Flexi-carbon Leg | -4/Hub_04(d) | Z-intel Impulse Thruster | -4/Hub_04(d) | Z-intel Adv. Reaction Control System | -4/Hub_04(d) | Z-intel Drone Bay | -4/Hub_04(d) | Z-intel Robot Schematics ------------------ A-15 Conveyor | -7/Data Miner | Free B-48 Gladiator | -7/Data Miner | Free R-10 Processor | -7/Data Miner | Free M-36 Artificer | -4/Factory | Z-intel Y-64 Sentinel | -4/Factory | Z-intel B-60 Warrior | -4/Factory | Z-intel O-32 Director | -4/Factory | Z-intel A-02 Transporter | -4/Extension | Z-intel E-15 Imp | -4/Extension | Z-intel T-07 Excavator | -4/Extension | Z-intel K-01 Serf | -4/Extension | Z-intel Fabricated ------------ Cmb. Gravmag System | x2 | -5/Factory | Authchip Cmb. Gravmag System | x2 | -5/Factory | Authchip Scatter Rocket Array | x1 | -5/Factory | Authchip Enh. Coil Gun | x1 | -5/Factory | Authchip Enh. Coil Gun | x1 | -4/Factory | Authchip Repaired ---------- Enh. Flexi-carbon Leg | 4% | -5/Factory Lgt. Armored Exoskeleton | 38% | -5/Factory Neutron Missile Launcher | 25% | -5/Factory Studied --------- Aluminum Leg | -9/Materials | Hacked Imp. Aluminum Leg | -9/Materials | Hacked Spread Laser | -9/Materials | Hacked Gatling Laser | -7/Factory | Hacked Cmb. Gravmag System | -4/Factory | Hacked Alien Tech Used ----------------- Core Expander Integrated Reactor Achievements -------------- None Challenges ------------ None Game ------ Seed WeaponsNeutronUnit Manual? 0 Play Time 04:24:45 Cumulative 520.8 hours Start 2025.11.06 @ 01:22:34 End 2025.11.06 @ 06:23:04 Sessions 1 Manual Loads 0 Difficulty Rogue Special Mode None Game No. 283 Rogue 283 Adventurer 0 Explorer 0 Win Type - Total 22 Types 13/1/5/1/0/0/0/1/1/0 Lore% 94 Gallery% 88 Achievement% 79 Wizard Run 0 Options --------- Layout 2 ASCII 0 Keyboard 1 Movement Vi Keybinds 0 Fullscreen 1 Font 28/Terminus Map View 50x52 Zoom Use 0% Tactical HUD 1 Map Filters NONE Filters NONE Steam 1 RUN: 1bbd8379-01c4-49d1-b37f-2df49968496a